{"text_format":"1","workbook":"xlsx","n_sheets":7,"sheets":["ID","Reg","Menu","Ringkasan","Tabel Penyusutan","Ketentuan UU","HD"],"not_rendered":{"charts":0,"images":2,"macros":1,"external_links":0,"defined_names":46,"comments":0,"pivot_tables":0},"unopened":[],"bounds":{"document_bytes":16777216,"sheet_cells":100000,"rows_first":2000,"rows_last":500,"rows_between":2000,"halvings":0,"cell_chars":16384,"cell_head_chars":4096},"cells_cut":0,"cells_raw":0,"read":"whole","date_system":"1900"}

{"sheet":"ID","index":0,"n_rows":500,"n_cols":154,"rows_kept":500,"cut":false,"hidden":true,"merged":[]}
[null,null,null,null,null,null,null,null,null,null,null,null,null,null,null,null,null,null,null,null,null,null,null,null,null,null,null,null,null,null,null,null,null,null,null,null,null,null,null,null,null,null,null,null,null,null,null,null,null,null,null,null,null,null,null,null,null,null,null,null,null,null,null,null,null,null,null,null,null,null,null,null,null,null,null,null,null,null,null,null,null,null,null,null,null,null,null,null,null,null,null,null,null,null,null,null,null,null,null,null,null,null,null,null,null,null,null,null,null,null,null,null,null,null,null,null,null,null,null,null,null,null,null,null,null,null,null,null,null,null,null,null,null,null,null,null,null,null,null,null,null,null,null,null,null,null,null,null,null,null,null,null,null,{"$f":"IF(INDEX(Ringkasan!C:C,0,1)=0,\"-\",INDEX(Ringkasan!C:C,0,1))","v":"-"}]
[null,null,null,null,null,null,null,null,null,null,null,null,null,null,null,null,null,null,null,null,null,null,null,null,null,null,null,null,null,null,null,null,null,null,null,null,null,null,null,null,null,null,null,null,null,null,null,null,null,null,{"$f":"IF(AND(Reg!D6=REG,Menu!E6=\"PT. BENGKOANG\",Menu!E9>2014,Menu!E9<2020,MIN('Tabel Penyusutan'!I7:I55)>2014,MAX('Tabel Penyusutan'!I7:I55)<2020),Menu!E6,\"#\")","v":"PT. BENGKOANG"},null,null,null,null,null,null,null,null,null,null,null,null,null,null,null,null,null,null,null,null,null,null,null,null,null,null,null,null,null,null,null,null,null,null,null,null,null,null,null,null,null,null,null,null,null,null,null,null,null,null,"Bulan","Index",null,null,null,null,null,null,null,null,null,null,null,null,null,null,null,null,null,null,null,null,null,null,null,null,null,null,null,null,null,null,null,null,null,null,null,null,null,null,null,null,null,null,null,null,null,null,null,null,null,null,{"$f":"IF(INDEX(Ringkasan!C:C,0,1)=0,\"-\",INDEX(Ringkasan!C:C,0,1))","v":"-"}]
[null,null,null,null,null,null,null,null,null,null,null,null,null,null,null,null,null,null,null,null,null,null,null,null,null,null,null,null,null,null,null,null,null,null,null,null,null,null,null,null,null,null,null,null,null,null,null,null,null,null,{"$f":"IF(No=O_,Nm,\"#\")","v":"PT. BENGKOANG"},null,null,null,null,null,null,null,null,null,null,null,null,null,null,null,null,null,null,null,null,null,null,null,null,null,null,null,null,null,null,null,null,null,null,null,null,null,null,null,null,null,null,null,null,null,null,null,null,null,null,"Januari",1,null,null,null,null,null,null,null,null,null,null,null,null,null,null,null,null,null,null,null,null,null,null,null,null,null,null,null,null,null,null,null,null,null,null,null,null,null,null,null,null,null,null,null,null,null,null,null,null,null,null,{"$f":"IF(INDEX(Ringkasan!C:C,0,1)=0,\"-\",INDEX(Ringkasan!C:C,0,1))","v":"-"}]
[null,null,null,null,null,null,null,null,null,null,null,null,null,null,null,null,null,null,null,null,null,null,null,null,null,null,null,null,null,null,null,null,null,null,null,null,null,null,null,null,null,null,null,null,null,null,null,null,null,null,null,null,null,null,null,null,null,null,null,null,null,null,null,null,null,null,null,null,null,null,null,null,null,null,null,null,null,null,null,null,null,null,null,null,null,null,null,null,null,null,null,null,null,null,null,null,null,null,null,null,null,"Februari",2,null,null,null,null,null,null,null,null,null,null,null,null,null,null,null,null,null,null,null,null,null,null,null,null,null,null,null,null,null,null,null,null,null,null,null,null,null,null,null,null,null,null,null,null,null,null,null,null,null,null,{"$f":"IF(INDEX(Ringkasan!C:C,0,1)=0,\"-\",INDEX(Ringkasan!C:C,0,1))","v":"-"}]
[null,null,null,null,null,null,null,null,null,null,null,null,null,null,null,null,null,null,null,null,null,null,null,null,null,null,null,null,null,null,null,null,null,null,null,null,null,null,null,null,null,null,null,null,null,null,null,null,null,null,{"$f":"IF(AND(Reg!D6=REG,Menu!E6=\"PT. BENGKOANG\",Menu!E9>2014,Menu!E9<2020,MIN('Tabel Penyusutan'!I7:I55)>2014,MAX('Tabel Penyusutan'!I7:I55)<2020),HD!XY2000+HD!XY3000+HD!XY4000+O_,\"#\")","v":0},null,null,null,null,null,null,null,null,null,null,null,null,null,null,null,null,null,null,null,null,null,null,null,null,null,null,null,null,null,null,null,null,null,null,null,null,null,null,null,null,null,null,null,null,null,null,null,null,null,null,"Maret",3,null,null,null,null,null,null,null,null,null,null,null,null,null,null,null,null,null,null,null,null,null,null,null,null,null,null,null,null,null,null,null,null,null,null,null,null,null,null,null,null,null,null,null,null,null,null,null,null,null,null,{"$f":"IF(INDEX(Ringkasan!C:C,0,1)=0,\"-\",INDEX(Ringkasan!C:C,0,1))","v":"-"}]
[null,null,null,null,null,null,null,null,null,null,null,null,null,null,null,null,null,null,null,null,null,null,null,null,null,null,null,null,null,null,null,null,null,null,null,null,null,null,null,null,null,null,null,null,null,null,null,null,null,null,{"$f":"IF(AND(Reg!D6=REG,Menu!E6=\"PT. BENGKOANG\",Menu!E9>2014,Menu!E9<2020,MIN('Tabel Penyusutan'!I7:I55)>2014,MAX('Tabel Penyusutan'!I7:I55)<2020),HD!XY2000+HD!XY3000+HD!XY4000+O_,\"#\")","v":0},null,null,null,null,null,null,null,null,null,null,null,null,null,null,null,null,null,null,null,null,null,null,null,null,null,null,null,null,null,null,null,null,null,null,null,null,null,null,null,null,null,null,null,null,null,null,null,null,null,null,"April",4,null,null,null,null,null,null,null,null,null,null,null,null,null,null,null,null,null,null,null,null,null,null,null,null,null,null,null,null,null,null,null,null,null,null,null,null,null,null,null,null,null,null,null,null,null,null,null,null,null,null,{"$f":"IF(INDEX(Ringkasan!C:C,0,1)=0,\"-\",INDEX(Ringkasan!C:C,0,1))","v":"Kelompok Aset Tetap"}]
[null,null,null,null,null,null,null,null,null,null,null,null,null,null,null,null,null,null,null,null,null,null,null,null,null,null,null,null,null,null,null,null,null,null,null,null,null,null,null,null,null,null,null,null,null,null,null,null,null,null,null,null,null,null,null,null,null,null,null,null,null,null,null,null,null,null,null,null,null,null,null,null,null,null,null,null,null,null,null,null,null,null,null,null,null,null,null,null,null,null,null,null,null,null,null,null,null,null,null,null,null,"Mei",5,null,null,null,null,null,null,null,null,null,null,null,null,null,null,null,null,null,null,null,null,null,null,null,null,null,null,null,null,null,null,null,null,null,null,null,null,null,null,null,null,null,null,null,null,null,null,null,null,null,null,{"$f":"IF(INDEX(Ringkasan!C:C,0,1)=0,\"-\",INDEX(Ringkasan!C:C,0,1))","v":"-"}]
[null,null,null,null,null,null,null,null,null,null,null,null,null,null,null,null,null,null,null,null,null,null,null,null,null,null,null,null,null,null,null,null,null,null,null,null,null,null,null,null,null,null,null,null,null,null,null,null,null,null,null,null,null,null,null,null,null,null,null,null,null,null,null,null,null,null,null,null,null,null,null,null,null,null,null,null,null,null,null,null,null,null,null,null,null,null,null,null,null,null,null,null,null,null,null,null,null,null,null,null,null,"Juni",6,null,null,null,null,null,null,null,null,null,null,null,null,null,null,null,null,null,null,null,null,null,null,null,null,null,null,null,null,null,null,null,null,null,null,null,null,null,null,null,null,null,null,null,null,null,null,null,null,null,null,{"$f":"IF(INDEX(Ringkasan!C:C,0,1)=0,\"-\",INDEX(Ringkasan!C:C,0,1))","v":"Tanah"}]
[null,null,null,null,null,null,null,null,null,null,null,null,null,null,null,null,null,null,null,null,null,null,null,null,null,null,null,null,null,null,null,null,null,null,null,null,null,null,null,null,null,null,null,null,null,null,null,null,null,null,null,null,null,null,null,null,null,null,null,null,null,null,null,null,null,null,null,null,null,null,null,null,null,null,null,null,null,null,null,null,null,null,null,null,null,null,null,null,null,null,null,null,null,null,null,null,null,null,null,null,null,"Juli",7,null,null,null,null,null,null,null,null,null,null,null,null,null,null,null,null,null,null,null,null,null,null,null,null,null,null,null,null,null,null,null,null,null,null,null,null,null,null,null,null,null,null,null,null,null,null,null,null,null,null,{"$f":"IF(INDEX(Ringkasan!C:C,0,1)=0,\"-\",INDEX(Ringkasan!C:C,0,1))","v":"Bangunan"}]
[null,null,null,null,null,null,null,null,null,null,null,null,null,null,null,null,null,null,null,null,null,null,null,null,null,null,null,null,null,null,null,null,null,null,null,null,null,null,null,null,null,null,null,null,null,null,null,null,null,null,null,null,null,null,null,null,null,null,null,null,null,null,null,null,null,null,null,null,null,null,null,null,null,null,null,null,null,null,null,null,null,null,null,null,null,null,null,null,null,null,null,null,null,null,null,null,null,null,null,null,null,"Agustus",8,null,null,null,null,null,null,null,null,null,null,null,null,null,null,null,null,null,null,null,null,null,null,null,null,null,null,null,null,null,null,null,null,null,null,null,null,null,null,null,null,null,null,null,null,null,null,null,null,null,null,{"$f":"IF(INDEX(Ringkasan!C:C,0,1)=0,\"-\",INDEX(Ringkasan!C:C,0,1))","v":"Mesin"}]
[null,null,null,null,null,null,null,null,null,null,null,null,null,null,null,null,null,null,null,null,null,null,null,null,null,null,null,null,null,null,null,null,null,null,null,null,null,null,null,null,null,null,null,null,null,null,null,null,null,null,null,null,null,null,null,null,null,null,null,null,null,null,null,null,null,null,null,null,null,null,null,null,null,null,null,null,null,null,null,null,null,null,null,null,null,null,null,null,null,null,null,null,null,null,null,null,null,null,null,null,null,"September",9,null,null,null,null,null,null,null,null,null,null,null,null,null,null,null,null,null,null,null,null,null,null,null,null,null,null,null,null,null,null,null,null,null,null,null,null,null,null,null,null,null,null,null,null,null,null,null,null,null,null,{"$f":"IF(INDEX(Ringkasan!C:C,0,1)=0,\"-\",INDEX(Ringkasan!C:C,0,1))","v":"Kendaraan"}]
[null,null,null,null,null,null,null,null,null,null,null,null,null,null,null,null,null,null,null,null,null,null,null,null,null,null,null,null,null,null,null,null,null,null,null,null,null,null,null,null,null,null,null,null,null,null,null,null,null,null,null,null,null,null,null,null,null,null,null,null,null,null,null,null,null,null,null,null,null,null,null,null,null,null,null,null,null,null,null,null,null,null,null,null,null,null,null,null,null,null,null,null,null,null,null,null,null,null,null,null,null,"Oktober",10,null,null,null,null,null,null,null,null,null,null,null,null,null,null,null,null,null,null,null,null,null,null,null,null,null,null,null,null,null,null,null,null,null,null,null,null,null,null,null,null,null,null,null,null,null,null,null,null,null,null,{"$f":"IF(INDEX(Ringkasan!C:C,0,1)=0,\"-\",INDEX(Ringkasan!C:C,0,1))","v":"Peralatan Kantor"}]
[null,null,null,null,null,null,null,null,null,null,null,null,null,null,null,null,null,null,null,null,null,null,null,null,null,null,null,null,null,null,null,null,null,null,null,null,null,null,null,null,null,null,null,null,null,null,null,null,null,null,null,null,null,null,null,null,null,null,null,null,null,null,null,null,null,null,null,null,null,null,null,null,null,null,null,null,null,null,null,null,null,null,null,null,null,null,null,null,null,null,null,null,null,null,null,null,null,null,null,null,null,"November",11,null,null,null,null,null,null,null,null,null,null,null,null,null,null,null,null,null,null,null,null,null,null,null,null,null,null,null,null,null,null,null,null,null,null,null,null,null,null,null,null,null,null,null,null,null,null,null,null,null,null,{"$f":"IF(INDEX(Ringkasan!C:C,0,1)=0,\"-\",INDEX(Ringkasan!C:C,0,1))","v":"-"}]
[null,null,null,null,null,null,null,null,null,null,null,null,null,null,null,null,null,null,null,null,null,null,null,null,null,null,null,null,null,null,null,null,null,null,null,null,null,null,null,null,null,null,null,null,null,null,null,null,null,null,null,null,null,null,null,null,null,null,null,null,null,null,null,null,null,null,null,null,null,null,null,null,null,null,null,null,null,null,null,null,null,null,null,null,null,null,null,null,null,null,null,null,null,null,null,null,null,null,null,null,null,"Desember",12,null,null,null,null,null,null,null,null,null,null,null,null,null,null,null,null,null,null,null,null,null,null,null,null,null,null,null,null,null,null,null,null,null,null,null,null,null,null,null,null,null,null,null,null,null,null,null,null,null,null,{"$f":"IF(INDEX(Ringkasan!C:C,0,1)=0,\"-\",INDEX(Ringkasan!C:C,0,1))","v":"-"}]
[null,null,null,null,null,null,null,null,null,null,null,null,null,null,null,null,null,null,null,null,null,null,null,null,null,null,null,null,null,null,null,null,null,null,null,null,null,null,null,null,null,null,null,null,null,null,null,null,null,null,null,null,null,null,null,null,null,null,null,null,null,null,null,null,null,null,null,null,null,null,null,null,null,null,null,null,null,null,null,null,null,null,null,null,null,null,null,null,null,null,null,null,null,null,null,null,null,null,null,null,null,null,null,null,null,null,null,null,null,null,null,null,null,null,null,null,null,null,null,null,null,null,null,null,null,null,null,null,null,null,null,null,null,null,null,null,null,null,null,null,null,null,null,null,null,null,null,null,null,null,null,null,null,{"$f":"IF(INDEX(Ringkasan!C:C,0,1)=0,\"-\",INDEX(Ringkasan!C:C,0,1))","v":"-"}]
[null,null,null,null,null,null,null,null,null,null,null,null,null,null,null,null,null,null,null,null,null,null,null,null,null,null,null,null,null,null,null,null,null,null,null,null,null,null,null,null,null,null,null,null,null,null,null,null,null,null,null,null,null,null,null,null,null,null,null,null,null,null,null,null,null,null,null,null,null,null,null,null,null,null,null,null,null,null,null,null,null,null,null,null,null,null,null,null,null,null,null,null,null,null,null,null,null,null,null,null,null,null,null,null,null,null,null,null,null,null,null,null,null,null,null,null,null,null,null,null,null,null,null,null,null,null,null,null,null,null,null,null,null,null,null,null,null,null,null,null,null,null,null,null,null,null,null,null,null,null,null,null,null,{"$f":"IF(INDEX(Ringkasan!C:C,0,1)=0,\"-\",INDEX(Ringkasan!C:C,0,1))","v":"-"}]
[null,null,null,null,null,null,null,null,null,null,null,null,null,null,null,null,null,null,null,null,null,null,null,null,null,null,null,null,null,null,null,null,null,null,null,null,null,null,null,null,null,null,null,null,null,null,null,null,null,null,null,null,null,null,null,null,null,null,null,null,null,null,null,null,null,null,null,null,null,null,null,null,null,null,null,null,null,null,null,null,null,null,null,null,null,null,null,null,null,null,null,null,null,null,null,null,null,null,null,null,null,null,null,null,null,null,null,null,null,null,null,null,null,null,null,null,null,null,null,null,null,null,null,null,null,null,null,null,null,null,null,null,null,null,null,null,null,null,null,null,null,null,null,null,null,null,null,null,null,null,null,null,null,{"$f":"IF(INDEX(Ringkasan!C:C,0,1)=0,\"-\",INDEX(Ringkasan!C:C,0,1))","v":"-"}]
[null,null,null,null,null,null,null,null,null,null,null,null,null,null,null,null,null,null,null,null,null,null,null,null,null,null,null,null,null,null,null,null,null,null,null,null,null,null,null,null,null,null,null,null,null,null,null,null,null,null,null,null,null,null,null,null,null,null,null,null,null,null,null,null,null,null,null,null,null,null,null,null,null,null,null,null,null,null,null,null,null,null,null,null,null,null,null,null,null,null,null,null,null,null,null,null,null,null,null,null,null,null,null,null,null,null,null,null,null,null,null,null,null,null,null,null,null,null,null,null,null,null,null,null,null,null,null,null,null,null,null,null,null,null,null,null,null,null,null,null,null,null,null,null,null,null,null,null,null,null,null,null,null,{"$f":"IF(INDEX(Ringkasan!C:C,0,1)=0,\"-\",INDEX(Ringkasan!C:C,0,1))","v":"-"}]
[null,null,null,null,null,null,null,null,null,null,null,null,null,null,null,null,null,null,null,null,null,null,null,null,null,null,null,null,null,null,null,null,null,null,null,null,null,null,null,null,null,null,null,null,null,null,null,null,null,null,null,null,null,null,null,null,null,null,null,null,null,null,null,null,null,null,null,null,null,null,null,null,null,null,null,null,null,null,null,null,null,null,null,null,null,null,null,null,null,null,null,null,null,null,null,null,null,null,null,null,null,null,null,null,null,null,null,null,null,null,null,null,null,null,null,null,null,null,null,null,null,null,null,null,null,null,null,null,null,null,null,null,null,null,null,null,null,null,null,null,null,null,null,null,null,null,null,null,null,null,null,null,null,{"$f":"IF(INDEX(Ringkasan!C:C,0,1)=0,\"-\",INDEX(Ringkasan!C:C,0,1))","v":"-"}]
[null,null,null,null,null,null,null,null,null,null,null,null,null,null,null,null,null,null,null,null,null,null,null,null,null,null,null,null,null,null,null,null,null,null,null,null,null,null,null,null,null,null,null,null,null,null,null,null,null,null,null,null,null,null,null,null,null,null,null,null,null,null,null,null,null,null,null,null,null,null,null,null,null,null,null,null,null,null,null,null,null,null,null,null,null,null,null,null,null,null,null,null,null,null,null,null,null,null,null,null,null,null,null,null,null,null,null,null,null,null,null,null,null,null,null,null,null,null,null,null,null,null,null,null,null,null,null,null,null,null,null,null,null,null,null,null,null,null,null,null,null,null,null,null,null,null,null,null,null,null,null,null,null,{"$f":"IF(INDEX(Ringkasan!C:C,0,1)=0,\"-\",INDEX(Ringkasan!C:C,0,1))","v":"-"}]
[null,null,null,null,null,null,null,null,null,null,null,null,null,null,null,null,null,null,null,null,null,null,null,null,null,null,null,null,null,null,null,null,null,null,null,null,null,null,null,null,null,null,null,null,null,null,null,null,null,null,null,null,null,null,null,null,null,null,null,null,null,null,null,null,null,null,null,null,null,null,null,null,null,null,null,null,null,null,null,null,null,null,null,null,null,null,null,null,null,null,null,null,null,null,null,null,null,null,null,null,null,null,null,null,null,null,null,null,null,null,null,null,null,null,null,null,null,null,null,null,null,null,null,null,null,null,null,null,null,null,null,null,null,null,null,null,null,null,null,null,null,null,null,null,null,null,null,null,null,null,null,null,null,{"$f":"IF(INDEX(Ringkasan!C:C,0,1)=0,\"-\",INDEX(Ringkasan!C:C,0,1))","v":"-"}]
[null,null,null,null,null,null,null,null,null,null,null,null,null,null,null,null,null,null,null,null,null,null,null,null,null,null,null,null,null,null,null,null,null,null,null,null,null,null,null,null,null,null,null,null,null,null,null,null,null,null,null,null,null,null,null,null,null,null,null,null,null,null,null,null,null,null,null,null,null,null,null,null,null,null,null,null,null,null,null,null,null,null,null,null,null,null,null,null,null,null,null,null,null,null,null,null,null,null,null,null,null,null,null,null,null,null,null,null,null,null,null,null,null,null,null,null,null,null,null,null,null,null,null,null,null,null,null,null,null,null,null,null,null,null,null,null,null,null,null,null,null,null,null,null,null,null,null,null,null,null,null,null,null,{"$f":"IF(INDEX(Ringkasan!C:C,0,1)=0,\"-\",INDEX(Ringkasan!C:C,0,1))","v":"-"}]
[null,null,null,null,null,null,null,null,null,null,null,null,null,null,null,null,null,null,null,null,null,null,null,null,null,null,null,null,null,null,null,null,null,null,null,null,null,null,null,null,null,null,null,null,null,null,null,null,null,null,null,null,null,null,null,null,null,null,null,null,null,null,null,null,null,null,null,null,null,null,null,null,null,null,null,null,null,null,null,null,null,null,null,null,null,null,null,null,null,null,null,null,null,null,null,null,null,null,null,null,null,null,null,null,null,null,null,null,null,null,null,null,null,null,null,null,null,null,null,null,null,null,null,null,null,null,null,null,null,null,null,null,null,null,null,null,null,null,null,null,null,null,null,null,null,null,null,null,null,null,null,null,null,{"$f":"IF(INDEX(Ringkasan!C:C,0,1)=0,\"-\",INDEX(Ringkasan!C:C,0,1))","v":"-"}]
[null,null,null,null,null,null,null,null,null,null,null,null,null,null,null,null,null,null,null,null,null,null,null,null,null,null,null,null,null,null,null,null,null,null,null,null,null,null,null,null,null,null,null,null,null,null,null,null,null,null,null,null,null,null,null,null,null,null,null,null,null,null,null,null,null,null,null,null,null,null,null,null,null,null,null,null,null,null,null,null,null,null,null,null,null,null,null,null,null,null,null,null,null,null,null,null,null,null,null,null,null,null,null,null,null,null,null,null,null,null,null,null,null,null,null,null,null,null,null,null,null,null,null,null,null,null,null,null,null,null,null,null,null,null,null,null,null,null,null,null,null,null,null,null,null,null,null,null,null,null,null,null,null,{"$f":"IF(INDEX(Ringkasan!C:C,0,1)=0,\"-\",INDEX(Ringkasan!C:C,0,1))","v":"-"}]
[]
[]
[null,null,null,null,null,null,null,null,null,null,null,null,null,null,null,null,null,null,null,null,null,null,null,null,null,null,null,null,null,null,null,null,null,null,null,null,null,null,null,null,null,null,null,null,null,null,null,null,null,null,{"$f":"HD!XY5000","v":"info@xclmedia.com"}]
[]
[]
[]
[]
[]
[]
[]
[]
[]
[]
[]
[]
[]
[]
[]
[]
[]
[]
[]
[]
[null,null,null,null,null,null,null,null,null,null,null,null,null,null,null,null,null,null,null,null,null,null,null,null,null,null,null,null,null,null,null,null,null,null,null,null,null,null,null,null,null,null,null,null,null,null,null,null,null,null,{"$f":"IF(Bn=O_,Menu!E9,\"#\")","v":2016}]
[null,null,null,null,null,null,null,null,null,null,null,null,null,null,null,null,null,null,null,null,null,null,null,null,null,null,null,null,null,null,null,null,null,null,null,null,null,null,null,null,null,null,null,null,null,null,null,null,null,null,{"$f":"Bl","v":2016}]
[null,null,null,null,null,null,null,null,null,null,null,null,null,null,null,null,null,null,null,null,null,null,null,null,null,null,null,null,null,null,null,null,null,null,null,null,null,null,null,null,null,null,null,null,null,null,null,null,null,null,{"$f":"IF(AND(Reg!D6=REG,Menu!E9>2014,Menu!E9<2020),HD!XY2000+HD!XY3000+HD!XY4000,\"#\")","v":0}]
[null,null,null,null,null,null,null,null,null,null,null,null,null,null,null,null,null,null,null,null,null,null,null,null,null,null,null,null,null,null,null,null,null,null,null,null,null,null,null,null,null,null,null,null,null,null,null,null,null,null,{"$f":"IF(AND(Reg!D6=REG,Menu!E9>2014,Menu!E9<2020),HD!XY2000+HD!XY3000+HD!XY4000+O_,\"#\")","v":0}]
[]
[]
[]
[]
[]
[]
[]
[]
[]
[]
[]
[]
[]
[]
[]
[]
[]
[]
[]
[]
[null,null,null,null,null,null,null,null,null,null,null,null,null,null,null,null,null,null,null,null,null,null,null,null,null,null,null,null,null,null,null,null,null,null,null,null,null,null,null,null,null,null,null,null,null,null,null,null,null,null,{"$f":"IF(Bn=O_,Menu!E8,\"#\")","v":"November"}]
[null,null,null,null,null,null,null,null,null,null,null,null,null,null,null,null,null,null,null,null,null,null,null,null,null,null,null,null,null,null,null,null,null,null,null,null,null,null,null,null,null,null,null,null,null,null,null,null,null,null,{"$f":"IF(Bn=O_,Menu!E9,\"#\")","v":2016}]
[]
[]
[]
[]
[]
[]
[]
[]
[]
[]
[]
[]
[]
[]
[]
[]
[]
[]
[]
[]
[null,null,null,null,null,null,null,null,null,null,null,null,null,null,null,null,null,null,null,null,null,null,null,null,null,null,null,null,null,null,null,null,null,null,null,null,null,null,null,null,null,null,null,null,null,null,null,null,null,null,{"$f":"IF(Bn=O_,IF(AND(Bln=0,Thn=0),\"Bulan : .............................\",IF(AND(Bln<>0,Thn=0),\"Bulan : \"&Bln&\" ..........\",IF(AND(Bln=0,Thn<>0),\"Bulan : ................... \"&Thn,IF(AND(Bln<>0,Thn<>0),\"Bulan : \"&Bln&\" \"&Thn,\"Bulan : ..................................\")))),\"#\")","v":"Bulan : November 2016"}]
[]
[]
[]
[]
[]
[]
[]
[]
[]
[]
[]
[]
[]
[]
[]
[]
[]
[]
[]
[]
[null,null,null,null,null,null,null,null,null,null,null,null,null,null,null,null,null,null,null,null,null,null,null,null,null,null,null,null,null,null,null,null,null,null,null,null,null,null,null,null,null,null,null,null,null,null,null,null,null,null,{"$f":"IF(Bn=O_,IF(Nm<>0,Nm,\"Nama Perusahaan\"),\"#\")","v":"PT. BENGKOANG"}]
[]
[]
[]
[]
[]
[]
[]
[]
[]
[]
[]
[]
[]
[]
[]
[]
[]
[]
[]
[]
[null,null,null,null,null,null,null,null,null,null,null,null,null,null,null,null,null,null,null,null,null,null,null,null,null,null,null,null,null,null,null,null,null,null,null,null,null,null,null,null,null,null,null,null,null,null,null,null,null,null,{"$f":"IF(Bn=O_,IF(AND(Bln<>0,Thn=0),LEFT(Bln,3)&\" ……..\",IF(AND(Bln=0,Thn<>0),\"…….. \"&Thn,IF(AND(Bln<>0,Thn<>0),LEFT(Bln,3)&\"-\"&Thn,\"……………\"))),\"#\")","v":"Nov-2016"}]
[]
[]
[]
[]
[]
[]
[]
[]
[]
[]
[]
[]
[]
[]
[]
[]
[]
[]
[]
[]
[null,null,null,null,null,null,null,null,null,null,null,null,null,null,null,null,null,null,null,null,null,null,null,null,null,null,null,null,null,null,null,null,null,null,null,null,null,null,null,null,null,null,null,null,null,null,null,null,null,null,{"$f":"IF(Bn=O_,IF(Thn<>0,\"s.d. Tahun \"&Thn-1,\"s.d. Tahun …….\"),\"#\")","v":"s.d. Tahun 2015"}]
[]
[]
[]
[]
[]
[]
[]
[]
[]
[]
[]
[]
[]
[]
[]
[]
[]
[]
[]
[]
[null,null,null,null,null,null,null,null,null,null,null,null,null,null,null,null,null,null,null,null,null,null,null,null,null,null,null,null,null,null,null,null,null,null,null,null,null,null,null,null,null,null,null,null,null,null,null,null,null,null,{"$f":"IF(Bn=O_,IF(Thn<>0,\"Tahun \"&Thn,\"Tahun …….\"),\"#\")","v":"Tahun 2016"}]
[]
[]
[]
[]
[]
[]
[]
[]
[]
[]
[]
[]
[]
[]
[]
[]
[]
[]
[]
[]
[null,null,null,null,null,null,null,null,null,null,null,null,null,null,null,null,null,null,null,null,null,null,null,null,null,null,null,null,null,null,null,null,null,null,null,null,null,null,null,null,null,null,null,null,null,null,null,null,null,null,{"$f":"IF(Bn=O_,\"-\",\"#\")","v":"-"}]
[]
[]
[]
[]
[]
[]
[]
[]
[]
[]
[]
[]
[]
[]
[]
[]
[]
[]
[]
[]
[null,null,null,null,null,null,null,null,null,null,null,null,null,null,null,null,null,null,null,null,null,null,null,null,null,null,null,null,null,null,null,null,null,null,null,null,null,null,null,null,null,null,null,null,null,null,null,null,null,null,{"$f":"COUNTBLANK(CX16:CY16)","v":2}]
[]
[]
[]
[]
[]
[]
[]
[]
[]
[]
[]
[]
[]
[]
[]
[]
[]
[]
[]
[]
[null,null,null,null,null,null,null,null,null,null,null,null,null,null,null,null,null,null,null,null,null,null,null,null,null,null,null,null,null,null,null,null,null,null,null,null,null,null,null,null,null,null,null,null,null,null,null,null,null,null,{"$f":"IF(Bn=O_,12,\"#\")","v":12}]
[]
[]
[]
[]
[]
[]
[]
[]
[]
[]
[]
[]
[]
[]
[]
[]
[]
[]
[]
[]
[null,null,null,null,null,null,null,null,null,null,null,null,null,null,null,null,null,null,null,null,null,null,null,null,null,null,null,null,null,null,null,null,null,null,null,null,null,null,null,null,null,null,null,null,null,null,null,null,null,null,{"$f":"IF(Bn=O_,\" Bulan\",\"#\")","v":" Bulan"}]
[]
[]
[]
[]
[]
[]
[]
[]
[]
[]
[]
[]
[]
[]
[]
[]
[]
[]
[]
[]
[null,null,null,null,null,null,null,null,null,null,null,null,null,null,null,null,null,null,null,null,null,null,null,null,null,null,null,null,null,null,null,null,null,null,null,null,null,null,null,null,null,null,null,null,null,null,null,null,null,null,{"$f":"IF(Bn=O_,\" Tahun\",\"#\")","v":" Tahun"}]
[]
[]
[]
[]
[]
[]
[]
[]
[]
[]
[]
[]
[]
[]
[]
[]
[]
[]
[]
[]
[null,null,null,null,null,null,null,null,null,null,null,null,null,null,null,null,null,null,null,null,null,null,null,null,null,null,null,null,null,null,null,null,null,null,null,null,null,null,null,null,null,null,null,null,null,null,null,null,null,null,"Habis"]
[]
[]
[]
[]
[]
[]
[]
[]
[]
[]
[]
[]
[]
[]
[]
[]
[]
[]
[]
[]
[null,null,null,null,null,null,null,null,null,null,null,null,null,null,null,null,null,null,null,null,null,null,null,null,null,null,null,null,null,null,null,null,null,null,null,null,null,null,null,null,null,null,null,null,null,null,null,null,null,null,{"$f":"IF(Bn=O_,\" - \",\"#\")","v":" - "}]
[]
[]
[]
[]
[]
[]
[]
[]
[]
[]
[]
[]
[]
[]
[]
[]
[]
[]
[]
[]
[null,null,null,null,null,null,null,null,null,null,null,null,null,null,null,null,null,null,null,null,null,null,null,null,null,null,null,null,null,null,null,null,null,null,null,null,null,null,null,null,null,null,null,null,null,null,null,null,null,null,{"$f":"IF(ML_=HD!XY1000,0,\"#\")","v":0}]
[]
[]
[]
[]
[]
[]
[]
[]
[]
[]
[]
[]
[]
[]
[]
[]
[]
[]
[]
[]
[]
[]
[]
[]
[]
[]
[]
[]
[]
[]
[]
[]
[]
[]
[]
[]
[]
[]
[]
[]
[]
[]
[]
[]
[]
[]
[]
[]
[]
[]
[]
[]
[]
[]
[]
[]
[]
[]
[]
[]
[]
[]
[]
[]
[]
[]
[]
[]
[]
[]
[]
[]
[]
[]
[]
[]
[]
[]
[]
[]
[]
[]
[]
[]
[]
[]
[]
[]
[]
[]
[]
[]
[]
[]
[]
[]
[]
[]
[]
[]
[]
[]
[]
[]
[]
[]
[]
[]
[]
[]
[]
[]
[]
[]
[]
[]
[]
[]
[]
[]
[]
[]
[]
[]
[]
[]
[]
[]
[]
[]
[]
[]
[]
[]
[]
[]
[]
[]
[]
[]
[]
[]
[]
[]
[]
[]
[]
[]
[]
[]
[]
[]
[]
[null,null,null,null,null,null,null,null,null,null,null,null,null,null,null,null,null,null,null,null,null,null,null,null,null,null,null,null,null,null,null,null,null,null,null,null,null,null,null,null,null,null,null,null,null,null,null,null,null,null,{"$f":"LEFT(RIGHT(REG,LEN(REG)-3),5)","v":"o@xcl"}]

{"sheet":"Reg","index":1,"n_rows":9,"n_cols":6,"rows_kept":9,"cut":false,"hidden":false,"merged":[]}
["  ","  ","  ","  ","  ","  "]
["  ","  ","  ","  ","  ","  "]
["  ","  ","  ","  ","  ","  "]
["  ","  ","  ","  ","  ","  "]
["  ","  ","  ","  ","  ","  "]
[null,null,"USER","info@xclmedia.com"]
["  ","  ","  ","  ","  "]
["  ","  ","  ","  ","  ","  "]
["  ","  ","  ","  ","  ","  "]

{"sheet":"Menu","index":2,"n_rows":11,"n_cols":5,"rows_kept":11,"cut":false,"hidden":false,"merged":[[5,4,5,6],[7,4,7,5]]}
[]
[]
[]
[]
[]
[null,null,"Perusahaan",":","PT. BENGKOANG"]
[null,null,"Penyusutan"]
[null,null,"Bulan",":","November"]
[null,null,"Tahun",":",2016]
[]
[{"$f":"IF(REG=Reg!D6,\"Reg: \"&REG&\" - @copyright: xclmedia.com\",\"Reg: Error - @copyright: xclmedia.com\")","v":"Reg: info@xclmedia.com - @copyright: xclmedia.com"}]

{"sheet":"Ringkasan","index":3,"n_rows":21,"n_cols":10,"rows_kept":21,"cut":false,"hidden":false,"merged":[]}
[]
[null,{"$f":"Perusahaan","v":"PT. BENGKOANG"}]
[null,"RINGKASAN DAFTAR PENYUSUTAN"]
[null,{"$f":"Tanggal","v":"Bulan : November 2016"}]
[]
[null,"No","Kelompok Aset Tetap",null,"Harga Perolehan","Penyusutan","Penyusutan","Penyusutan","Total Penyusutan","Nilai Buku"]
[null,null,null,null,null,{"$f":"Bl..","v":"Nov-2016"},{"$f":"Th.","v":"s.d. Tahun 2015"},{"$f":"Th..","v":"Tahun 2016"}]
[null,{"$f":"IF(C8=No,Min,COUNTA(C$8:C8))","v":1},"Tanah",null,{"$f":"SUMIF(Klom1,IF(No=Np,C8,Bn),Klom2)","v":325000000},{"$f":"SUMIF(Klom1,IF(Bn=Bo,C8,No),Klom3)","v":0},{"$f":"SUMIF(Klom1,IF(No=Bo,C8,Bn),Klom4)","v":0},{"$f":"SUMIF(Klom1,IF(No=Bo,C8,Bn),Klom5)","v":0},{"$f":"G8+H8","v":0},{"$f":"E8-I8","v":325000000}]
[null,{"$f":"IF(C9=No,Min,COUNTA(C$8:C9))","v":2},"Bangunan",null,525000000,2187500,24687500,24062500,{"$f":"G9+H9","v":48750000},{"$f":"E9-I9","v":476250000}]
[null,{"$f":"IF(C10=No,Min,COUNTA(C$8:C10))","v":3},"Mesin",null,4470000000,23645833.333333336,233124999.99999997,260104166.66666669,493229166.66666663,3976770833.3333335]
[null,{"$f":"IF(C11=No,Min,COUNTA(C$8:C11))","v":4},"Kendaraan",null,285500000,2973958.3333333335,29239583.333333332,32713541.666666668,61953125,223546875]
[null,{"$f":"IF(C12=No,Min,COUNTA(C$8:C12))","v":5},"Peralatan Kantor",null,66050000,1376041.6666666665,16053125,15136458.333333334,31189583.333333336,34860416.666666664]
[null,{"$f":"IF(C13=No,Min,COUNTA(C$8:C13))","v":"-"},null,null,0,0,0,0,0,0]
[null,{"$f":"IF(C14=No,Min,COUNTA(C$8:C14))","v":"-"},null,null,0,0,0,0,0,0]
[null,{"$f":"IF(C15=No,Min,COUNTA(C$8:C15))","v":"-"},null,null,0,0,0,0,0,0]
[null,{"$f":"IF(C16=No,Min,COUNTA(C$8:C16))","v":"-"},null,null,0,0,0,0,0,0]
[null,{"$f":"IF(C17=No,Min,COUNTA(C$8:C17))","v":"-"},null,null,0,0,0,0,0,0]
[null,{"$f":"IF(C18=No,Min,COUNTA(C$8:C18))","v":"-"},null,null,0,0,0,0,0,0]
[null,{"$f":"IF(C19=No,Min,COUNTA(C$8:C19))","v":"-"},null,null,0,0,0,0,0,0]
[null,{"$f":"IF(C20=No,Min,COUNTA(C$8:C20))","v":"-"},null,null,0,0,0,0,0,0]
[null,{"$f":"IF(C21=No,Min,COUNTA(C$8:C21))","v":"-"},null,null,{"$f":"SUM(E8:E20)","v":5671550000},{"$f":"SUM(F8:F20)","v":30183333.333333336},303105208.33333331,332016666.66666669,635121875,5036428125.000001]

{"sheet":"Tabel Penyusutan","index":4,"n_rows":57,"n_cols":24,"rows_kept":57,"cut":false,"hidden":false,"merged":[[3,9,3,11],[3,19,3,20],[4,19,4,20],[3,4,3,8],[3,17,3,18],[4,17,4,18]]}
[null,{"$f":"Perusahaan","v":"PT. BENGKOANG"}]
[null,"DAFTAR PENYUSUTAN AKTIVA TETAP"]
[null,{"$f":"Tanggal","v":"Bulan : November 2016"}]
[null,null,null,null,"Tanggal",null,null,null,null,"Nilai",null,null,null,"Umur","Persentase","Penyusutan","Penyusutan","Akum. Peny.",null,"Penyusutan",null,"Total",null,"Keterangan Sisa"]
[null,"No","Keterangan","Kelompok","Tgl","Bulan","Tahun","Mulai","Tahun","Unit","Harga","Jumlah","Nilai Sisa","Ekonomis","Penyusutan","Per Bulan",{"$f":"Bl..","v":"Nov-2016"},{"$f":"Th.","v":"s.d. Tahun 2015"},null,{"$f":"Th..","v":"Tahun 2016"},null,"Akumulasi","Nilai Buku","Bulan / Tahun"]
[null,null,null,null,null,"Perolehan",null,"Penyusutan",null,null,"Perolehan",null,null,"(Tahun)","Per Tahun",null,null,"Bln","Jumlah","Bln","Jumlah","Penyusutan"]
[null,null,null,null,null,null,null,null,null,null,null,{"$f":"IF(Nm<>Nn,No,IF(Bl<>Bm,Bn,IF(J7<>Bn,J7*K7+Np,K7+Bo)))","v":0},null,null,{"$f":"IF(Nm<>Nn,Min,IF(Bl<>Bm,Min,IF(N7<>Bo,(1/N7)+Np,Min)))","v":"-"},{"$f":"IF(Nm<>Nn,No,IF(OR(Bl<>Bm),Bn,IF(O7=Min,No,((L7-M7-Np-Bo)*(O7/12)+Np+Bo))))","v":0},{"$f":"IF(AND(Nm=Nn,Bl=Bm),IF(H7<>Bn,IF(Bln<>Bo,IF(N7<>Bn,IF(AND(Thn=I7,VLOOKUP(Bln,ID,Scd,FALSE)>=VLOOKUP(H7,ID,Scd,FALSE)),P7,IF(AND(Thn>I7,(12-VLOOKUP(H7,ID,Scd,FALSE))+((Thn-I7)*12)-(12-VLOOKUP(Bln,ID,Scd,FALSE))<N7*12),P7,No)),Np),Bo),Bn),Bo)","v":0},{"$f":"IF(AND(Nm=Nn,Bl=Bm),IF(H7<>Bn,IF((IF(13-VLOOKUP(H7,ID,Scd,FALSE)+(Thn-I7-1)*12<=N7*12,13-Bn-VLOOKUP(H7,ID,Scd,FALSE)+Bo+(Thn-I7-1)*12,IF(AND(13-VLOOKUP(H7,ID,Scd,FALSE)+(Thn-I7-1)*12>N7*12),N7*12,Np)))<Bo,Bn,(IF(13-VLOOKUP(H7,ID,Scd,FALSE)+(Thn-I7-1)*12<=N7*12,13-VLOOKUP(H7,ID,Scd,FALSE)+(Thn-I7-1)*12,IF(13-VLOOKUP(H7,ID,Scd,FALSE)+(Thn-I7-1)*12>N7*12,N7*12,No)))),Np),Bn+Bo)","v":0},{"$f":"IF(P7=Min,No,P7*R7)","v":0},{"$f":"IF(ISNA(VLOOKUP(H7,ID,Scd,FALSE))=TRUE,No,IF(IF(N7*12=R7,Bn,IF(AND(N7*12-R7<VLOOKUP(H7,ID,Scd,FALSE),VLOOKUP(H7,ID,Scd,FALSE)<=VLOOKUP(Bln,ID,Scd,FALSE)),VLOOKUP(H7,ID,Scd,FALSE)-1,IF(AND(N7*12-R7<VLOOKUP(H7,ID,Scd,FALSE),VLOOKUP(H7,ID,Scd,FALSE)>VLOOKUP(Bln,ID,Scd,FALSE)),VLOOKUP(Bln,ID,Scd,FALSE),IF(AND(R7=Bo,I7<Thn),VLOOKUP(Bln,ID,Scd,FALSE)-1,IF(AND(R7=Bn,I7=Thn),VLOOKUP(Bln,ID,Scd,FALSE)-VLOOKUP(H7,ID,Scd,FALSE)+1,VLOOKUP(Bln,ID,Scd,FALSE))))))<Bo,Np+Bo,IF(OR(Thn<I7,H7=Bn,Bln=Bo,Nm<>Nn,Bl<>Bm),No+Bn,IF(N7*12=R7,Bn,IF(AND(N7*12-R7<VLOOKUP(H7,ID,Scd,FALSE),VLOOKUP(H7,ID,Scd,FALSE)<=VLOOKUP(Bln,ID,Scd,FALSE)),VLOOKUP(H7,ID,Scd,FALSE)-1,IF(AND(N7*12-R7<VLOOKUP(H7,ID,Scd,FALSE),VLOOKUP(H7,ID,Scd,FALSE)>VLOOKUP(Bln,ID,Scd,FALSE)),VLOOKUP(Bln,ID,Scd,FALSE),IF(AND(R7=Bo,I7<Thn),VLOOKUP(Bln,ID,Scd,FALSE)-1,IF(AND(R7=Bn,I7=Thn),VLOOKUP(Bln,ID,Scd,FALSE)-VLOOKUP(H7,ID,Scd,FALSE)+1,VLOOKUP(Bln,ID,Scd,FALSE)))))))))","v":0},{"$f":"P7*T7","v":0},{"$f":"S7+U7","v":0},{"$f":"L7-V7","v":0},{"$f":"IF(AND(Nm=Nn,Bl=Bm,N7=Bn),Min,IF((N7*Month)-R7-T7=Bo+Bn,Habis,IF(AND(((N7*Month)-R7-T7)>Month,R7=0),ROUNDDOWN(((N7*Month)-R7-T7)/Month,No)&Tahun&Min_&((N7*Month)-R7-T7)-(ROUNDDOWN(((N7*Month)-R7-T7)/Month,Np)*Month)&Bulan,IF(((N7*Month)-R7-T7)>Month,ROUNDDOWN(((N7*Month)-R7-T7)/Month,No)&Tahun&Min_&((N7*Month)-R7-T7)-(ROUNDDOWN(((N7*Month)-R7-T7)/Month,Np)*Month)&Bulan,(N7*Month)-R7-T7&Bulan))))","v":"-"}]
[null,{"$f":"IF(C8=No,Min,COUNTA(C$8:C8))","v":1},"Tanah Kantor","Tanah","1900-01-10","Januari",2015,"Januari",2015,null,75000000,75000000,null,0,{"$f":"IF(Nm<>Nn,Min,IF(Bl<>Bm,Min,IF(N8<>Bo,(1/N8)+Np,Min)))","v":"-"},{"$f":"IF(Nm<>Nn,No,IF(OR(Bl<>Bm),Bn,IF(O8=Min,No,((L8-M8-Np-Bo)*(O8/12)+Np+Bo))))","v":0},{"$f":"IF(AND(Nm=Nn,Bl=Bm),IF(H8<>Bn,IF(Bln<>Bo,IF(N8<>Bn,IF(AND(Thn=I8,VLOOKUP(Bln,ID,Scd,FALSE)>=VLOOKUP(H8,ID,Scd,FALSE)),P8,IF(AND(Thn>I8,(12-VLOOKUP(H8,ID,Scd,FALSE))+((Thn-I8)*12)-(12-VLOOKUP(Bln,ID,Scd,FALSE))<N8*12),P8,No)),Np),Bo),Bn),Bo)","v":0},{"$f":"IF(AND(Nm=Nn,Bl=Bm),IF(H8<>Bn,IF((IF(13-VLOOKUP(H8,ID,Scd,FALSE)+(Thn-I8-1)*12<=N8*12,13-Bn-VLOOKUP(H8,ID,Scd,FALSE)+Bo+(Thn-I8-1)*12,IF(AND(13-VLOOKUP(H8,ID,Scd,FALSE)+(Thn-I8-1)*12>N8*12),N8*12,Np)))<Bo,Bn,(IF(13-VLOOKUP(H8,ID,Scd,FALSE)+(Thn-I8-1)*12<=N8*12,13-VLOOKUP(H8,ID,Scd,FALSE)+(Thn-I8-1)*12,IF(13-VLOOKUP(H8,ID,Scd,FALSE)+(Thn-I8-1)*12>N8*12,N8*12,No)))),Np),Bn+Bo)","v":0},{"$f":"IF(P8=Min,No,P8*R8)","v":0},{"$f":"IF(ISNA(VLOOKUP(H8,ID,Scd,FALSE))=TRUE,No,IF(IF(N8*12=R8,Bn,IF(AND(N8*12-R8<VLOOKUP(H8,ID,Scd,FALSE),VLOOKUP(H8,ID,Scd,FALSE)<=VLOOKUP(Bln,ID,Scd,FALSE)),VLOOKUP(H8,ID,Scd,FALSE)-1,IF(AND(N8*12-R8<VLOOKUP(H8,ID,Scd,FALSE),VLOOKUP(H8,ID,Scd,FALSE)>VLOOKUP(Bln,ID,Scd,FALSE)),VLOOKUP(Bln,ID,Scd,FALSE),IF(AND(R8=Bo,I8<Thn),VLOOKUP(Bln,ID,Scd,FALSE)-1,IF(AND(R8=Bn,I8=Thn),VLOOKUP(Bln,ID,Scd,FALSE)-VLOOKUP(H8,ID,Scd,FALSE)+1,VLOOKUP(Bln,ID,Scd,FALSE))))))<Bo,Np+Bo,IF(OR(Thn<I8,H8=Bn,Bln=Bo,Nm<>Nn,Bl<>Bm),No+Bn,IF(N8*12=R8,Bn,IF(AND(N8*12-R8<VLOOKUP(H8,ID,Scd,FALSE),VLOOKUP(H8,ID,Scd,FALSE)<=VLOOKUP(Bln,ID,Scd,FALSE)),VLOOKUP(H8,ID,Scd,FALSE)-1,IF(AND(N8*12-R8<VLOOKUP(H8,ID,Scd,FALSE),VLOOKUP(H8,ID,Scd,FALSE)>VLOOKUP(Bln,ID,Scd,FALSE)),VLOOKUP(Bln,ID,Scd,FALSE),IF(AND(R8=Bo,I8<Thn),VLOOKUP(Bln,ID,Scd,FALSE)-1,IF(AND(R8=Bn,I8=Thn),VLOOKUP(Bln,ID,Scd,FALSE)-VLOOKUP(H8,ID,Scd,FALSE)+1,VLOOKUP(Bln,ID,Scd,FALSE)))))))))","v":0},{"$f":"P8*T8","v":0},{"$f":"S8+U8","v":0},{"$f":"L8-V8","v":75000000},"-"]
[null,{"$f":"IF(C9=No,Min,COUNTA(C$8:C9))","v":2},"Tanah Gudang I","Tanah","1900-01-15","Februari",2015,"Februari",2015,null,150000000,150000000,null,0,"-",0,0,0,0,0,0,0,150000000,"-"]
[null,{"$f":"IF(C10=No,Min,COUNTA(C$8:C10))","v":3},"Tanah Gudang II","Tanah","1900-01-20","Februari",2015,"Februari",2015,null,100000000,100000000,null,0,"-",0,0,0,0,0,0,0,100000000,"-"]
[null,{"$f":"IF(C11=No,Min,COUNTA(C$8:C11))","v":"-"},null,null,null,null,null,null,null,null,null,0,null,null,"-",0,0,0,0,0,0,0,0,"-"]
[null,{"$f":"IF(C12=No,Min,COUNTA(C$8:C12))","v":"-"},null,null,null,null,null,null,null,null,null,0,null,null,"-",0,0,0,0,0,0,0,0,"-"]
[null,{"$f":"IF(C13=No,Min,COUNTA(C$8:C13))","v":"-"},null,null,null,null,null,null,null,null,null,0,null,null,"-",0,0,0,0,0,0,0,0,"-"]
[null,null,"Sub Total",null,null,null,null,null,null,null,{"$f":"SUM(K8:K13)","v":325000000},{"$f":"SUM(L8:L13)","v":325000000},null,null,null,{"$f":"SUM(P8:P13)","v":0},{"$f":"SUM(Q8:Q13)","v":0},null,{"$f":"SUM(S8:S13)","v":0},null,{"$f":"SUM(U8:U13)","v":0},{"$f":"SUM(V8:V13)","v":0},{"$f":"SUM(W8:W13)","v":325000000},"-"]
[null,null,null,null,null,null,null,null,null,null,null,{"$f":"IF(Nm<>Nn,No,IF(Bl<>Bm,Bn,IF(J15<>Bn,J15*K15+Np,K15+Bo)))","v":0},null,null,{"$f":"IF(Nm<>Nn,Min,IF(Bl<>Bm,Min,IF(N15<>Bo,(1/N15)+Np,Min)))","v":"-"},{"$f":"IF(Nm<>Nn,No,IF(OR(Bl<>Bm),Bn,IF(O15=Min,No,((L15-M15-Np-Bo)*(O15/12)+Np+Bo))))","v":0},{"$f":"IF(AND(Nm=Nn,Bl=Bm),IF(H15<>Bn,IF(Bln<>Bo,IF(N15<>Bn,IF(AND(Thn=I15,VLOOKUP(Bln,ID,Scd,FALSE)>=VLOOKUP(H15,ID,Scd,FALSE)),P15,IF(AND(Thn>I15,(12-VLOOKUP(H15,ID,Scd,FALSE))+((Thn-I15)*12)-(12-VLOOKUP(Bln,ID,Scd,FALSE))<N15*12),P15,No)),Np),Bo),Bn),Bo)","v":0},{"$f":"IF(AND(Nm=Nn,Bl=Bm),IF(H15<>Bn,IF((IF(13-VLOOKUP(H15,ID,Scd,FALSE)+(Thn-I15-1)*12<=N15*12,13-Bn-VLOOKUP(H15,ID,Scd,FALSE)+Bo+(Thn-I15-1)*12,IF(AND(13-VLOOKUP(H15,ID,Scd,FALSE)+(Thn-I15-1)*12>N15*12),N15*12,Np)))<Bo,Bn,(IF(13-VLOOKUP(H15,ID,Scd,FALSE)+(Thn-I15-1)*12<=N15*12,13-VLOOKUP(H15,ID,Scd,FALSE)+(Thn-I15-1)*12,IF(13-VLOOKUP(H15,ID,Scd,FALSE)+(Thn-I15-1)*12>N15*12,N15*12,No)))),Np),Bn+Bo)","v":0},{"$f":"IF(P15=Min,No,P15*R15)","v":0},{"$f":"IF(ISNA(VLOOKUP(H15,ID,Scd,FALSE))=TRUE,No,IF(IF(N15*12=R15,Bn,IF(AND(N15*12-R15<VLOOKUP(H15,ID,Scd,FALSE),VLOOKUP(H15,ID,Scd,FALSE)<=VLOOKUP(Bln,ID,Scd,FALSE)),VLOOKUP(H15,ID,Scd,FALSE)-1,IF(AND(N15*12-R15<VLOOKUP(H15,ID,Scd,FALSE),VLOOKUP(H15,ID,Scd,FALSE)>VLOOKUP(Bln,ID,Scd,FALSE)),VLOOKUP(Bln,ID,Scd,FALSE),IF(AND(R15=Bo,I15<Thn),VLOOKUP(Bln,ID,Scd,FALSE)-1,IF(AND(R15=Bn,I15=Thn),VLOOKUP(Bln,ID,Scd,FALSE)-VLOOKUP(H15,ID,Scd,FALSE)+1,VLOOKUP(Bln,ID,Scd,FALSE))))))<Bo,Np+Bo,IF(OR(Thn<I15,H15=Bn,Bln=Bo,Nm<>Nn,Bl<>Bm),No+Bn,IF(N15*12=R15,Bn,IF(AND(N15*12-R15<VLOOKUP(H15,ID,Scd,FALSE),VLOOKUP(H15,ID,Scd,FALSE)<=VLOOKUP(Bln,ID,Scd,FALSE)),VLOOKUP(H15,ID,Scd,FALSE)-1,IF(AND(N15*12-R15<VLOOKUP(H15,ID,Scd,FALSE),VLOOKUP(H15,ID,Scd,FALSE)>VLOOKUP(Bln,ID,Scd,FALSE)),VLOOKUP(Bln,ID,Scd,FALSE),IF(AND(R15=Bo,I15<Thn),VLOOKUP(Bln,ID,Scd,FALSE)-1,IF(AND(R15=Bn,I15=Thn),VLOOKUP(Bln,ID,Scd,FALSE)-VLOOKUP(H15,ID,Scd,FALSE)+1,VLOOKUP(Bln,ID,Scd,FALSE)))))))))","v":0},{"$f":"P15*T15","v":0},{"$f":"S15+U15","v":0},{"$f":"L15-V15","v":0},"-"]
[null,{"$f":"IF(C16=No,Min,COUNTA(C$16:C16))","v":1},"Bangunan Kantor","Bangunan","1900-01-10","Januari",2015,"Januari",2015,null,150000000,150000000,null,20,0.05,625000,625000,12,7500000,11,6875000,14375000,135625000,"18 Tahun - 1 Bulan"]
[null,{"$f":"IF(C17=No,Min,COUNTA(C$16:C17))","v":2},"Bangunan Gudang I","Bangunan","1900-01-15","Februari",2015,"Februari",2015,null,200000000,200000000,null,20,0.05,833333.33333333337,833333.33333333337,11,9166666.6666666679,11,9166666.6666666679,18333333.333333336,181666666.66666666,"18 Tahun - 2 Bulan"]
[null,{"$f":"IF(C18=No,Min,COUNTA(C$16:C18))","v":3},"Bangunan Gudang II","Bangunan","1900-01-20","Februari",2015,"Februari",2015,null,175000000,175000000,null,20,0.05,729166.66666666663,729166.66666666663,11,8020833.333333333,11,8020833.333333333,16041666.666666666,158958333.33333334,"18 Tahun - 2 Bulan"]
[null,{"$f":"IF(C19=No,Min,COUNTA(C$16:C19))","v":"-"},null,null,null,null,null,null,null,null,null,0,null,null,"-",0,0,0,0,0,0,0,0,"-"]
[null,{"$f":"IF(C20=No,Min,COUNTA(C$16:C20))","v":"-"},null,null,null,null,null,null,null,null,null,0,null,null,"-",0,0,0,0,0,0,0,0,"-"]
[null,{"$f":"IF(C21=No,Min,COUNTA(C$16:C21))","v":"-"},null,null,null,null,null,null,null,null,null,0,null,null,"-",0,0,0,0,0,0,0,0,"-"]
[null,null,"Sub Total",null,null,null,null,null,null,null,{"$f":"SUM(K16:K21)","v":525000000},{"$f":"SUM(L16:L21)","v":525000000},null,null,null,{"$f":"SUM(P16:P21)","v":2187500},{"$f":"SUM(Q16:Q21)","v":2187500},null,{"$f":"SUM(S16:S21)","v":24687500},null,{"$f":"SUM(U16:U21)","v":24062500},{"$f":"SUM(V16:V21)","v":48750000},{"$f":"SUM(W16:W21)","v":476250000},"-"]
[null,null,null,null,null,null,null,null,null,null,null,{"$f":"IF(Nm<>Nn,No,IF(Bl<>Bm,Bn,IF(J23<>Bn,J23*K23+Np,K23+Bo)))","v":0},null,null,{"$f":"IF(Nm<>Nn,Min,IF(Bl<>Bm,Min,IF(N23<>Bo,(1/N23)+Np,Min)))","v":"-"},{"$f":"IF(Nm<>Nn,No,IF(OR(Bl<>Bm),Bn,IF(O23=Min,No,((L23-M23-Np-Bo)*(O23/12)+Np+Bo))))","v":0},{"$f":"IF(AND(Nm=Nn,Bl=Bm),IF(H23<>Bn,IF(Bln<>Bo,IF(N23<>Bn,IF(AND(Thn=I23,VLOOKUP(Bln,ID,Scd,FALSE)>=VLOOKUP(H23,ID,Scd,FALSE)),P23,IF(AND(Thn>I23,(12-VLOOKUP(H23,ID,Scd,FALSE))+((Thn-I23)*12)-(12-VLOOKUP(Bln,ID,Scd,FALSE))<N23*12),P23,No)),Np),Bo),Bn),Bo)","v":0},{"$f":"IF(AND(Nm=Nn,Bl=Bm),IF(H23<>Bn,IF((IF(13-VLOOKUP(H23,ID,Scd,FALSE)+(Thn-I23-1)*12<=N23*12,13-Bn-VLOOKUP(H23,ID,Scd,FALSE)+Bo+(Thn-I23-1)*12,IF(AND(13-VLOOKUP(H23,ID,Scd,FALSE)+(Thn-I23-1)*12>N23*12),N23*12,Np)))<Bo,Bn,(IF(13-VLOOKUP(H23,ID,Scd,FALSE)+(Thn-I23-1)*12<=N23*12,13-VLOOKUP(H23,ID,Scd,FALSE)+(Thn-I23-1)*12,IF(13-VLOOKUP(H23,ID,Scd,FALSE)+(Thn-I23-1)*12>N23*12,N23*12,No)))),Np),Bn+Bo)","v":0},{"$f":"IF(P23=Min,No,P23*R23)","v":0},{"$f":"IF(ISNA(VLOOKUP(H23,ID,Scd,FALSE))=TRUE,No,IF(IF(N23*12=R23,Bn,IF(AND(N23*12-R23<VLOOKUP(H23,ID,Scd,FALSE),VLOOKUP(H23,ID,Scd,FALSE)<=VLOOKUP(Bln,ID,Scd,FALSE)),VLOOKUP(H23,ID,Scd,FALSE)-1,IF(AND(N23*12-R23<VLOOKUP(H23,ID,Scd,FALSE),VLOOKUP(H23,ID,Scd,FALSE)>VLOOKUP(Bln,ID,Scd,FALSE)),VLOOKUP(Bln,ID,Scd,FALSE),IF(AND(R23=Bo,I23<Thn),VLOOKUP(Bln,ID,Scd,FALSE)-1,IF(AND(R23=Bn,I23=Thn),VLOOKUP(Bln,ID,Scd,FALSE)-VLOOKUP(H23,ID,Scd,FALSE)+1,VLOOKUP(Bln,ID,Scd,FALSE))))))<Bo,Np+Bo,IF(OR(Thn<I23,H23=Bn,Bln=Bo,Nm<>Nn,Bl<>Bm),No+Bn,IF(N23*12=R23,Bn,IF(AND(N23*12-R23<VLOOKUP(H23,ID,Scd,FALSE),VLOOKUP(H23,ID,Scd,FALSE)<=VLOOKUP(Bln,ID,Scd,FALSE)),VLOOKUP(H23,ID,Scd,FALSE)-1,IF(AND(N23*12-R23<VLOOKUP(H23,ID,Scd,FALSE),VLOOKUP(H23,ID,Scd,FALSE)>VLOOKUP(Bln,ID,Scd,FALSE)),VLOOKUP(Bln,ID,Scd,FALSE),IF(AND(R23=Bo,I23<Thn),VLOOKUP(Bln,ID,Scd,FALSE)-1,IF(AND(R23=Bn,I23=Thn),VLOOKUP(Bln,ID,Scd,FALSE)-VLOOKUP(H23,ID,Scd,FALSE)+1,VLOOKUP(Bln,ID,Scd,FALSE)))))))))","v":0},{"$f":"P23*T23","v":0},{"$f":"S23+U23","v":0},{"$f":"L23-V23","v":0},"-"]
[null,{"$f":"IF(C24=No,Min,COUNTA(C$24:C24))","v":1},"Mesin Cetak Web","Mesin","1900-01-25","Februari",2015,"Maret",2015,2,1250000000,2500000000,null,16,6.25E-2,13020833.333333332,13020833.333333332,10,130208333.33333331,11,143229166.66666666,273437500,2226562500,"14 Tahun - 3 Bulan"]
[null,{"$f":"IF(C25=No,Min,COUNTA(C$24:C25))","v":2},"Mesin Cetak Solna","Mesin","1900-01-28","Februari",2015,"Maret",2015,4,350000000,1400000000,null,16,6.25E-2,7291666.666666666,7291666.666666666,10,72916666.666666657,11,80208333.333333328,153125000,1246875000,"14 Tahun - 3 Bulan"]
[null,{"$f":"IF(C26=No,Min,COUNTA(C$24:C26))","v":3},"Mesin Potong","Mesin","1900-01-10","Maret",2015,"April",2015,2,250000000,500000000,null,16,6.25E-2,2604166.6666666665,2604166.6666666665,9,23437500,11,28645833.333333332,52083333.333333328,447916666.66666669,"14 Tahun - 4 Bulan"]
[null,{"$f":"IF(C27=No,Min,COUNTA(C$24:C27))","v":4},"Mesin Jilid","Mesin","1900-01-10","Maret",2015,"April",2015,2,20000000,40000000,null,8,0.125,416666.66666666663,416666.66666666663,9,3749999.9999999995,11,4583333.333333333,8333333.3333333321,31666666.666666668,"6 Tahun - 4 Bulan"]
[null,{"$f":"IF(C28=No,Min,COUNTA(C$24:C28))","v":5},"Mesin Plate","Mesin","1900-01-15","Maret",2015,"April",2015,2,15000000,30000000,null,8,0.125,312500,312500,9,2812500,11,3437500,6250000,23750000,"6 Tahun - 4 Bulan"]
[null,{"$f":"IF(C29=No,Min,COUNTA(C$24:C29))","v":"-"},null,null,null,null,null,null,null,null,null,0,null,null,"-",0,0,0,0,0,0,0,0,"-"]
[null,{"$f":"IF(C30=No,Min,COUNTA(C$24:C30))","v":"-"},null,null,null,null,null,null,null,null,null,0,null,null,"-",0,0,0,0,0,0,0,0,"-"]
[null,{"$f":"IF(C31=No,Min,COUNTA(C$24:C31))","v":"-"},null,null,null,null,null,null,null,null,null,0,null,null,"-",0,0,0,0,0,0,0,0,"-"]
[null,null,"Sub Total",null,null,null,null,null,null,null,{"$f":"SUM(K24:K31)","v":1885000000},{"$f":"SUM(L24:L31)","v":4470000000},null,null,null,{"$f":"SUM(P24:P31)","v":23645833.333333336},{"$f":"SUM(Q24:Q31)","v":23645833.333333336},null,{"$f":"SUM(S24:S31)","v":233124999.99999997},null,{"$f":"SUM(U24:U31)","v":260104166.66666669},{"$f":"SUM(V24:V31)","v":493229166.66666663},{"$f":"SUM(W24:W31)","v":3976770833.333333},"-"]
[null,null,null,null,null,null,null,null,null,null,null,{"$f":"IF(Nm<>Nn,No,IF(Bl<>Bm,Bn,IF(J33<>Bn,J33*K33+Np,K33+Bo)))","v":0},null,null,{"$f":"IF(Nm<>Nn,Min,IF(Bl<>Bm,Min,IF(N33<>Bo,(1/N33)+Np,Min)))","v":"-"},{"$f":"IF(Nm<>Nn,No,IF(OR(Bl<>Bm),Bn,IF(O33=Min,No,((L33-M33-Np-Bo)*(O33/12)+Np+Bo))))","v":0},{"$f":"IF(AND(Nm=Nn,Bl=Bm),IF(H33<>Bn,IF(Bln<>Bo,IF(N33<>Bn,IF(AND(Thn=I33,VLOOKUP(Bln,ID,Scd,FALSE)>=VLOOKUP(H33,ID,Scd,FALSE)),P33,IF(AND(Thn>I33,(12-VLOOKUP(H33,ID,Scd,FALSE))+((Thn-I33)*12)-(12-VLOOKUP(Bln,ID,Scd,FALSE))<N33*12),P33,No)),Np),Bo),Bn),Bo)","v":0},{"$f":"IF(AND(Nm=Nn,Bl=Bm),IF(H33<>Bn,IF((IF(13-VLOOKUP(H33,ID,Scd,FALSE)+(Thn-I33-1)*12<=N33*12,13-Bn-VLOOKUP(H33,ID,Scd,FALSE)+Bo+(Thn-I33-1)*12,IF(AND(13-VLOOKUP(H33,ID,Scd,FALSE)+(Thn-I33-1)*12>N33*12),N33*12,Np)))<Bo,Bn,(IF(13-VLOOKUP(H33,ID,Scd,FALSE)+(Thn-I33-1)*12<=N33*12,13-VLOOKUP(H33,ID,Scd,FALSE)+(Thn-I33-1)*12,IF(13-VLOOKUP(H33,ID,Scd,FALSE)+(Thn-I33-1)*12>N33*12,N33*12,No)))),Np),Bn+Bo)","v":0},{"$f":"IF(P33=Min,No,P33*R33)","v":0},{"$f":"IF(ISNA(VLOOKUP(H33,ID,Scd,FALSE))=TRUE,No,IF(IF(N33*12=R33,Bn,IF(AND(N33*12-R33<VLOOKUP(H33,ID,Scd,FALSE),VLOOKUP(H33,ID,Scd,FALSE)<=VLOOKUP(Bln,ID,Scd,FALSE)),VLOOKUP(H33,ID,Scd,FALSE)-1,IF(AND(N33*12-R33<VLOOKUP(H33,ID,Scd,FALSE),VLOOKUP(H33,ID,Scd,FALSE)>VLOOKUP(Bln,ID,Scd,FALSE)),VLOOKUP(Bln,ID,Scd,FALSE),IF(AND(R33=Bo,I33<Thn),VLOOKUP(Bln,ID,Scd,FALSE)-1,IF(AND(R33=Bn,I33=Thn),VLOOKUP(Bln,ID,Scd,FALSE)-VLOOKUP(H33,ID,Scd,FALSE)+1,VLOOKUP(Bln,ID,Scd,FALSE))))))<Bo,Np+Bo,IF(OR(Thn<I33,H33=Bn,Bln=Bo,Nm<>Nn,Bl<>Bm),No+Bn,IF(N33*12=R33,Bn,IF(AND(N33*12-R33<VLOOKUP(H33,ID,Scd,FALSE),VLOOKUP(H33,ID,Scd,FALSE)<=VLOOKUP(Bln,ID,Scd,FALSE)),VLOOKUP(H33,ID,Scd,FALSE)-1,IF(AND(N33*12-R33<VLOOKUP(H33,ID,Scd,FALSE),VLOOKUP(H33,ID,Scd,FALSE)>VLOOKUP(Bln,ID,Scd,FALSE)),VLOOKUP(Bln,ID,Scd,FALSE),IF(AND(R33=Bo,I33<Thn),VLOOKUP(Bln,ID,Scd,FALSE)-1,IF(AND(R33=Bn,I33=Thn),VLOOKUP(Bln,ID,Scd,FALSE)-VLOOKUP(H33,ID,Scd,FALSE)+1,VLOOKUP(Bln,ID,Scd,FALSE)))))))))","v":0},{"$f":"P33*T33","v":0},{"$f":"S33+U33","v":0},{"$f":"L33-V33","v":0},{"$f":"IF(AND(Nm=Nn,Bl=Bm,N33=Bn),Min,IF((N33*Month)-R33-T33=Bo+Bn,Habis,IF(AND(((N33*Month)-R33-T33)>Month,R33=0),ROUNDDOWN(((N33*Month)-R33-T33)/Month,No)&Tahun&Min_&((N33*Month)-R33-T33)-(ROUNDDOWN(((N33*Month)-R33-T33)/Month,Np)*Month)&Bulan,IF(((N33*Month)-R33-T33)>Month,ROUNDDOWN(((N33*Month)-R33-T33)/Month,No)&Tahun&Min_&((N33*Month)-R33-T33)-(ROUNDDOWN(((N33*Month)-R33-T33)/Month,Np)*Month)&Bulan,(N33*Month)-R33-T33&Bulan))))","v":"-"}]
[null,{"$f":"IF(C34=No,Min,COUNTA(C$34:C34))","v":1},"Mobil Box Fanther","Kendaraan","1900-01-10","Februari",2015,"Maret",2015,3,65000000,195000000,null,8,0.125,2031250,2031250,10,20312500,11,22343750,42656250,152343750,"6 Tahun - 3 Bulan"]
[null,{"$f":"IF(C35=No,Min,COUNTA(C$34:C35))","v":2},"Mobil Daihatsu Zebra","Kendaraan","1900-01-15","Februari",2015,"Maret",2015,1,55000000,55000000,null,8,0.125,572916.66666666663,572916.66666666663,10,5729166.666666666,11,6302083.333333333,12031250,42968750,"6 Tahun - 3 Bulan"]
[null,{"$f":"IF(C36=No,Min,COUNTA(C$34:C36))","v":3},"Motor Honda Supra","Kendaraan","1900-01-25","Maret",2015,"April",2015,2,11500000,23000000,null,8,0.125,239583.33333333331,239583.33333333331,9,2156250,11,2635416.6666666665,4791666.666666666,18208333.333333336,"6 Tahun - 4 Bulan"]
[null,{"$f":"IF(C37=No,Min,COUNTA(C$34:C37))","v":4},"Motor Yamaha Zupiter","Kendaraan","1900-01-20","April",2015,"Mei",2015,1,12500000,12500000,null,8,0.125,130208.33333333333,130208.33333333333,8,1041666.6666666666,11,1432291.6666666665,2473958.333333333,10026041.666666668,"6 Tahun - 5 Bulan"]
[null,{"$f":"IF(C38=No,Min,COUNTA(C$34:C38))","v":"-"},null,null,null,null,null,null,null,null,null,0,null,null,"-",0,0,0,0,0,0,0,0,"-"]
[null,{"$f":"IF(C39=No,Min,COUNTA(C$34:C39))","v":"-"},null,null,null,null,null,null,null,null,null,0,null,null,"-",0,0,0,0,0,0,0,0,"-"]
[null,{"$f":"IF(C40=No,Min,COUNTA(C$34:C40))","v":"-"},null,null,null,null,null,null,null,null,null,0,null,null,"-",0,0,0,0,0,0,0,0,"-"]
[null,null,"Sub Total",null,null,null,null,null,null,null,{"$f":"SUM(K34:K40)","v":144000000},{"$f":"SUM(L34:L40)","v":285500000},null,null,null,{"$f":"SUM(P34:P40)","v":2973958.3333333335},{"$f":"SUM(Q34:Q40)","v":2973958.3333333335},null,{"$f":"SUM(S34:S40)","v":29239583.333333332},null,{"$f":"SUM(U34:U40)","v":32713541.666666668},{"$f":"SUM(V34:V40)","v":61953125},{"$f":"SUM(W34:W40)","v":223546875},"-"]
[null,null,null,null,null,null,null,null,null,null,null,{"$f":"IF(Nm<>Nn,No,IF(Bl<>Bm,Bn,IF(J42<>Bn,J42*K42+Np,K42+Bo)))","v":0},null,null,{"$f":"IF(Nm<>Nn,Min,IF(Bl<>Bm,Min,IF(N42<>Bo,(1/N42)+Np,Min)))","v":"-"},{"$f":"IF(Nm<>Nn,No,IF(OR(Bl<>Bm),Bn,IF(O42=Min,No,((L42-M42-Np-Bo)*(O42/12)+Np+Bo))))","v":0},{"$f":"IF(AND(Nm=Nn,Bl=Bm),IF(H42<>Bn,IF(Bln<>Bo,IF(N42<>Bn,IF(AND(Thn=I42,VLOOKUP(Bln,ID,Scd,FALSE)>=VLOOKUP(H42,ID,Scd,FALSE)),P42,IF(AND(Thn>I42,(12-VLOOKUP(H42,ID,Scd,FALSE))+((Thn-I42)*12)-(12-VLOOKUP(Bln,ID,Scd,FALSE))<N42*12),P42,No)),Np),Bo),Bn),Bo)","v":0},{"$f":"IF(AND(Nm=Nn,Bl=Bm),IF(H42<>Bn,IF((IF(13-VLOOKUP(H42,ID,Scd,FALSE)+(Thn-I42-1)*12<=N42*12,13-Bn-VLOOKUP(H42,ID,Scd,FALSE)+Bo+(Thn-I42-1)*12,IF(AND(13-VLOOKUP(H42,ID,Scd,FALSE)+(Thn-I42-1)*12>N42*12),N42*12,Np)))<Bo,Bn,(IF(13-VLOOKUP(H42,ID,Scd,FALSE)+(Thn-I42-1)*12<=N42*12,13-VLOOKUP(H42,ID,Scd,FALSE)+(Thn-I42-1)*12,IF(13-VLOOKUP(H42,ID,Scd,FALSE)+(Thn-I42-1)*12>N42*12,N42*12,No)))),Np),Bn+Bo)","v":0},{"$f":"IF(P42=Min,No,P42*R42)","v":0},{"$f":"IF(ISNA(VLOOKUP(H42,ID,Scd,FALSE))=TRUE,No,IF(IF(N42*12=R42,Bn,IF(AND(N42*12-R42<VLOOKUP(H42,ID,Scd,FALSE),VLOOKUP(H42,ID,Scd,FALSE)<=VLOOKUP(Bln,ID,Scd,FALSE)),VLOOKUP(H42,ID,Scd,FALSE)-1,IF(AND(N42*12-R42<VLOOKUP(H42,ID,Scd,FALSE),VLOOKUP(H42,ID,Scd,FALSE)>VLOOKUP(Bln,ID,Scd,FALSE)),VLOOKUP(Bln,ID,Scd,FALSE),IF(AND(R42=Bo,I42<Thn),VLOOKUP(Bln,ID,Scd,FALSE)-1,IF(AND(R42=Bn,I42=Thn),VLOOKUP(Bln,ID,Scd,FALSE)-VLOOKUP(H42,ID,Scd,FALSE)+1,VLOOKUP(Bln,ID,Scd,FALSE))))))<Bo,Np+Bo,IF(OR(Thn<I42,H42=Bn,Bln=Bo,Nm<>Nn,Bl<>Bm),No+Bn,IF(N42*12=R42,Bn,IF(AND(N42*12-R42<VLOOKUP(H42,ID,Scd,FALSE),VLOOKUP(H42,ID,Scd,FALSE)<=VLOOKUP(Bln,ID,Scd,FALSE)),VLOOKUP(H42,ID,Scd,FALSE)-1,IF(AND(N42*12-R42<VLOOKUP(H42,ID,Scd,FALSE),VLOOKUP(H42,ID,Scd,FALSE)>VLOOKUP(Bln,ID,Scd,FALSE)),VLOOKUP(Bln,ID,Scd,FALSE),IF(AND(R42=Bo,I42<Thn),VLOOKUP(Bln,ID,Scd,FALSE)-1,IF(AND(R42=Bn,I42=Thn),VLOOKUP(Bln,ID,Scd,FALSE)-VLOOKUP(H42,ID,Scd,FALSE)+1,VLOOKUP(Bln,ID,Scd,FALSE)))))))))","v":0},{"$f":"P42*T42","v":0},{"$f":"S42+U42","v":0},{"$f":"L42-V42","v":0},"-"]
[null,{"$f":"IF(C43=No,Min,COUNTA(C$43:C43))","v":1},"Meja Kantor ","Peralatan Kantor","1900-01-10","Januari",2015,"Januari",2015,10,350000,3500000,null,4,0.25,72916.666666666657,72916.666666666657,12,874999.99999999988,11,802083.33333333326,1677083.333333333,1822916.666666667,"2 Tahun - 1 Bulan"]
[null,{"$f":"IF(C44=No,Min,COUNTA(C$43:C44))","v":2},"Kursi Kantor","Peralatan Kantor","1900-01-10","Januari",2015,"Januari",2015,20,125000,2500000,null,4,0.25,52083.333333333328,52083.333333333328,12,625000,11,572916.66666666663,1197916.6666666665,1302083.3333333335,"2 Tahun - 1 Bulan"]
[null,{"$f":"IF(C45=No,Min,COUNTA(C$43:C45))","v":3},"Komputer Pentium IV","Peralatan Kantor","1900-01-13","Januari",2015,"Januari",2015,5,4500000,22500000,null,4,0.25,468750,468750,12,5625000,11,5156250,10781250,11718750,"2 Tahun - 1 Bulan"]
[null,{"$f":"IF(C46=No,Min,COUNTA(C$43:C46))","v":4},"Komputer Pentium III","Peralatan Kantor","1900-01-15","Januari",2015,"Januari",2015,5,3000000,15000000,null,4,0.25,312500,312500,12,3750000,11,3437500,7187500,7812500,"2 Tahun - 1 Bulan"]
[null,{"$f":"IF(C47=No,Min,COUNTA(C$43:C47))","v":5},"Printer HP 2000","Peralatan Kantor","1900-01-20","Januari",2015,"Januari",2015,2,2500000,5000000,null,4,0.25,104166.66666666666,104166.66666666666,12,1250000,11,1145833.3333333333,2395833.333333333,2604166.666666667,"2 Tahun - 1 Bulan"]
[null,{"$f":"IF(C48=No,Min,COUNTA(C$43:C48))","v":6},"Almari Kabinet","Peralatan Kantor","1900-01-05","Februari",2015,"Februari",2015,5,1750000,8750000,null,4,0.25,182291.66666666666,182291.66666666666,11,2005208.3333333333,11,2005208.3333333333,4010416.6666666665,4739583.333333334,"2 Tahun - 2 Bulan"]
[null,{"$f":"IF(C49=No,Min,COUNTA(C$43:C49))","v":7},"Almari Biasa","Peralatan Kantor","1900-01-10","Februari",2015,"Februari",2015,3,1500000,4500000,null,4,0.25,93750,93750,11,1031250,11,1031250,2062500,2437500,"2 Tahun - 2 Bulan"]
[null,{"$f":"IF(C50=No,Min,COUNTA(C$43:C50))","v":8},"Printer Cannon","Peralatan Kantor","1900-01-25","Februari",2015,"Februari",2015,2,650000,1300000,null,4,0.25,27083.333333333332,27083.333333333332,11,297916.66666666663,11,297916.66666666663,595833.33333333326,704166.66666666674,"2 Tahun - 2 Bulan"]
[null,{"$f":"IF(C51=No,Min,COUNTA(C$43:C51))","v":9},"Mesin Fax","Peralatan Kantor","1900-01-25","Februari",2015,"Februari",2015,1,1500000,1500000,null,4,0.25,31250,31250,11,343750,11,343750,687500,812500,"2 Tahun - 2 Bulan"]
[null,{"$f":"IF(C52=No,Min,COUNTA(C$43:C52))","v":10},"Sofa Tamu  ","Peralatan Kantor","1900-01-01","Mei",2015,"Mei",2015,1,1500000,1500000,null,4,0.25,31250,31250,8,250000,11,343750,593750,906250,"2 Tahun - 5 Bulan"]
[null,{"$f":"IF(C53=No,Min,COUNTA(C$43:C53))","v":"-"},null,null,null,null,null,null,null,null,null,0,null,null,"-",0,0,0,0,0,0,0,0,"-"]
[null,{"$f":"IF(C54=No,Min,COUNTA(C$43:C54))","v":"-"},null,null,null,null,null,null,null,null,null,0,null,null,"-",0,0,0,0,0,0,0,0,"-"]
[null,{"$f":"IF(C55=No,Min,COUNTA(C$43:C55))","v":"-"},null,null,null,null,null,null,null,null,null,0,null,null,"-",0,0,0,0,0,0,0,0,"-"]
[null,null,"Sub Total",null,null,null,null,null,null,null,{"$f":"SUM(K43:K55)","v":17375000},{"$f":"SUM(L43:L55)","v":66050000},null,null,null,{"$f":"SUM(P43:P55)","v":1376041.6666666665},{"$f":"SUM(Q43:Q55)","v":1376041.6666666665},null,{"$f":"SUM(S43:S55)","v":16053125},null,{"$f":"SUM(U43:U55)","v":15136458.333333334},{"$f":"SUM(V43:V55)","v":31189583.333333332},{"$f":"SUM(W43:W55)","v":34860416.666666672},"-"]
[null,null," Total",null,null,null,null,null,null,null,{"$f":"K14+K22+K32+K41+K56","v":2896375000},{"$f":"L14+L22+L32+L41+L56","v":5671550000},null,null,null,{"$f":"P14+P22+P32+P41+P56","v":30183333.333333336},{"$f":"Q14+Q22+Q32+Q41+Q56","v":30183333.333333336},null,{"$f":"S14+S22+S32+S41+S56","v":303105208.33333331},null,{"$f":"U14+U22+U32+U41+U56","v":332016666.66666669},{"$f":"V14+V22+V32+V41+V56","v":635121875},{"$f":"W14+W22+W32+W41+W56","v":5036428125},"-"]

{"sheet":"Ketentuan UU","index":5,"n_rows":102,"n_cols":4,"rows_kept":102,"cut":false,"hidden":false,"merged":[]}
[]
[null,"Penyusutan Kelompok Harta Berwujud"]
[]
[]
[]
[]
[]
[]
[]
[]
[]
[]
[]
[]
[]
[]
[]
[]
[]
[]
[]
[null,"Pengelompokan & Tarif Penyusutan Aktiva Tetap Fiskal "]
[null,"Berdasarkan PERATURAN MENTERI KEUANGAN No. 96/PMK.03/2009"]
[null,"Tentang : JENIS-JENIS HARTA YANG TERMASUK DALAM KELOMPOK HARTA BERWUJUD BUKAN BANGUNAN UNTUK KEPERLUAN PENYUSUTAN"]
[]
[null,"A. Kelompok 1"]
[null,"Tarif Penyusutan : 25 %"]
[null,"Masa Manfaat : 4 Tahun"]
[null,"No.","Jenis Usaha","Jenis Harta"]
[null,1,"Semua jenis usaha","a. Mebel dan peralatan dari kayu atau rotan termasuk meja, bangku, kursi, lemari dan sejenisnya yang bukan bagian dari bangunan."]
[null,null,null,"b. Mesin kantor seperti mesin tik, mesin hitung, duplikator, mesin fotokopi, mesin akunting/pembukuan, komputer, printer, scanner dan sejenisnya."]
[null,null,null,"c. Perlengkapan lainnya seperti amplifier, tape/cassette, video recorder, televisi dan sejenisnya."]
[null,null,null,"d. Sepeda motor, sepeda dan becak."]
[null,null,null,"e. Alat perlengkapan khusus (tools) bagi industri/jasa yang bersangkutan."]
[null,null,null,"f. Dies, jigs, dan mould."]
[null,null,null,"g. Alat-alat komunikasi seperti pesawat telepon, faksimile, telepon seluler dan sejenisnya."]
[null,2,"Pertanian, perkebunan, kehutanan,","Alat yang digerakkan bukan dengan mesin seperti cangkul, peternakan, perikanan, garu dan lain-lain."]
[null,3,"Industri makanan dan minuman","Mesin ringan yang dapat dipindah-pindahkan seperti, huller, pemecah kulit, penyosoh, pengering, pallet, dan sejenisnya."]
[null,4,"Transportasi dan Pergudangan","Mobil taksi, bus dan truk yang digunakan sebagai angkutan umum."]
[null,5,"Industri semi konduktor","Falsh memory tester, writer machine, biporar test system, elimination (PE8-1), pose checker."]
[null,6,"Jasa Persewaan Peralatan Tambat Air Dalam","Anchor, Anchor Chains, Polyester Rope, Steel Buoys, Steel Wire Ropes, Mooring Accessoris."]
[null,7,"Jasa telekomunikasi selular","Base Station Controller"]
[]
[null,"B. Kelompok 2"]
[null,"Tarif Penyusutan : 12,5 %"]
[null,"Masa Manfaat : 8 Tahun"]
[null,"No.","Jenis Usaha","Jenis Harta"]
[null,1,"Semua jenis usaha","a. Mebel dan peralatan dari logam termasuk meja, bangku, kursi, lemari dan sejenisnya yang bukan merupakan bagian dari bangunan. Alat pengatur udara seperti AC, kipas angin dan sejenisnya."]
[null,null,null,"b. Mobil, bus, truk, speed boat dan sejenisnya."]
[null,null,null,"c. Container dan sejenisnya."]
[null,2,"Pertanian, perkebunan, kehutanan, perikanan","a. Mesin pertanian/perkebunan seperti traktor dan mesin bajak, penggaruk, penanaman, penebar benih dan sejenisnya."]
[null,null,null,"b. Mesin yang mengolah atau menghasilkan atau memproduksi bahan atau barang pertanian, perkebunan, peternakan dan perikanan."]
[null,3,"Industri makanan dan minuman","a. Mesin yang mengolah produk asal binatang, unggas dan perikanan, misalnya pabrik susu, pengalengan ikan ."]
[null,null,null,"b. Mesin yang mengolah produk nabati, misalnya mesin minyak kelapa, margarin, penggilingan kopi, kembang gula, mesin pengolah biji-bijian seperti penggilingan beras, gandum, tapioka."]
[null,null,null,"c. Mesin yang menghasilkan/memproduksi minuman dan bahan-bahan minuman segala jenis."]
[null,null,null,"d. Mesin yang menghasilkan/memproduksi bahan-bahan makanan dan makanan segala jenis."]
[null,4,"Industri mesin","Mesin yang menghasilkan/memproduksi mesin ringan (misalnya mesin jahit, pompa air)."]
[null,5,"Perkayuan, kehutanan","a. Mesin dan peralatan penebangan kayu."]
[null,null,null,"b. Mesin yang mengolah atau menghasilkan atau memproduksi bahan atau barang kehutanan."]
[null,6,"Konstruksi","Peralatan yang dipergunakan seperti truk berat, dump truck, crane buldozer dan sejenisnya."]
[null,7,"Transportasi dan Pergudangan","a. Truk kerja untuk pengangkutan dan bongkar muat, truk peron, truck ngangkang, dan sejenisnya;"]
[null,null,null,"b. Kapal penumpang, kapal barang, kapal khusus dibuat untuk pengangkutan barang tertentu (misalnya gandum, batu - batuan, biji tambang dan sebagainya) termasuk kapal pendingin, kapal tangki, kapal penangkap ikan dan sejenisnya, yang mempunyai berat sampai dengan 100 DWT;"]
[null,null,null,"c. Kapal yang dibuat khusus untuk menghela atau mendorong kapal-kapal suar, kapal pemadam kebakaran, kapal keruk, keran terapung dan sejenisnya yang mempunyai berat sampai dengan 100 DWT;"]
[null,null,null,"d. Perahu layar pakai atau tanpa motor yang mempunyai berat sampai dengan 250 DWT;"]
[null,null,null,"e. Kapal balon."]
[null,8,"Telekomunikasi","a. Perangkat pesawat telepon;"]
[null,null,null,"b. Pesawat telegraf termasuk pesawat pengiriman dan penerimaan radio telegraf dan radio telepon."]
[null,9,"Industri semi konduktor","Auto frame loader, automatic logic handler, baking oven, ball shear tester, bipolar test handler (automatic), cleaning machine, coating machine, curing oven, cutting press, dambar cut machine, dicer, die bonder, die shear test, dynamic burn-in system oven, dynamic test handler, eliminator (PGE-01), full automatic handler, full automatic mark, hand maker, individual mark, inserter remover machine, laser marker (FUM A-01), logic test system, marker (mark), memory test system, molding, mounter, MPS automatic, MPS manual, O/S tester manual, pass oven, pose checker, re-form machine, SMD stocker, taping machine, tiebar cut press, trimming/forming machine, wire bonder, wire pull tester."]
[null,10,"Jasa Persewaan Peralatan Tambat Air Dalam","Spoolling Machines, Metocean Data Collector"]
[null,11,"Jasa Telekomunikasi Seluler","Mobile Switching Center, Home Location Register, Visitor Location Register. Authentication Centre, Equipment Identity Register, Intelligent Network Service Control Point, intelligent Network Service Managemen Point, Radio Base Station, Transceiver Unit, Terminal SDH/Mini Link, Antena"]
[]
[null,"C. Kelompok 3"]
[null,"Tarif Penyusutan : 6,25 %"]
[null,"Masa Manfaat : 16 Tahun"]
[null,"No.","Jenis Usaha","Jenis Harta"]
[null,1,"Pertambangan selain minyak dan gas","Mesin-mesin yang dipakai dalam bidang pertambangan, termasuk mesin-mesin yang mengolah produk pelikan."]
[null,2,"Permintalan, pertenunan dan pencelupan","a. Mesin yang mengolah/menghasilkan produk-produk tekstil (misalnya kain katun, sutra, serat-serat buatan, wol dan bulu hewan lainnya, lena rami, permadani, kain-kain bulu, tule)."]
[null,null,null,"b. Mesin untuk yang preparation, bleaching, dyeing, printing, finishing, texturing, packaging dan sejenisnya."]
[null,3,"Perkayuan","a. Mesin yang mengolah/menghasilkan produk-produk kayu, barang-barang dari jerami, rumput dan bahan anyaman lainnya."]
[null,null,null,"b. Mesin dan peralatan penggergajian kayu."]
[null,4,"Industri kimia","a. Mesin peralatan yang mengolah/menghasilkan produk industri kimia dan industri yang ada hubungannya dengan industri kimia (misalnya bahan kimia anorganis, persenyawaan organis dan anorganis dan logam mulia, elemen radio aktif, isotop, bahan kimia organis, produk farmasi, pupuk, obat celup, obat pewarna, cat, pernis, minyak eteris dan resinoida-resinonida wangi-wangian, obat kecantikan dan obat rias, sabun, detergent dan bahan organis pembersih lainnya, zat albumina, perekat, bahan peledak, produk pirotehnik, korek api, alloy piroforis, barang fotografi dan sinematografi."]
[null,null,null,"b. Mesin yang mengolah/menghasilkan produk industri lainnya (misalnya damar tiruan, bahan plastik, ester dan eter dari selulosa, karet sintetis, karet tiruan, kulit samak, jangat dan kulit mentah)."]
[null,5,"Industri mesin","Mesin yang menghasilkan/memproduksi mesin menengah dan berat (misalnya mesin mobil, mesin kapal)."]
[null,6,"Transportasi dan Pergudangan","a. Kapal penumpang, kapal barang, kapal khusus dibuat untuk pengangkutan barang-barang tertentu (misalnya gandum, batu-batuan, biji tambang dan sejenisnya) termasuk kapal pendingin dan kapal tangki, kapal penangkapan ikan dan sejenisnya, yang mempunyai berat di atas 100 DWT sampai dengan 1.000 DWT."]
[null,null,null,"b. Kapal dibuat khusus untuk mengela atau mendorong kapal, kapal suar, kapal pemadam kebakaran, kapal keruk, keran terapung dan sejenisnya, yang mempunyai berat di atas 100 DWT sampai dengan 1.000 DWT."]
[null,null,null,"c. Dok terapung."]
[null,null,null,"d. Perahu layar pakai atau tanpa motor yang mempunyai berat di atas 250 DWT."]
[null,null,null,"e. Pesawat terbang dan helikopter-helikopter segala jenis."]
[null,7,"Telekomunikasi","Perangkat radio navigasi, radar dan kendali jarak jauh."]
[]
[null,"D. Kelompok 4"]
[null,"Tarif Penyusutan : 5 %"]
[null,"Masa Manfaat : 20 Tahun"]
[null,"No.","Jenis Usaha","Jenis Harta"]
[null,1,"Konstruksi","Mesin berat untuk konstruksi"]
[null,2,"Transportasi dan Pergudangan","a. Lokomotif uap dan tender atas rel."]
[null,null,null,"b. Lokomotif listrik atas rel, dijalankan dengan batere atau dengan tenaga listrik dari sumber luar."]
[null,null,null,"c. Lokomotif atas rel lainnya."]
[null,null,null,"d. Kereta, gerbong penumpang dan barang, termasuk kontainer khusus dibuat dan diperlengkapi untuk ditarik dengan satu alat atau beberapa alat pengangkutan."]
[null,null,null,"e. Kapal penumpang, kapal barang, kapal khusus dibuat untuk pengangkutan barang-barang tertentu (misalnya gandum, batu-batuan, biji tambang dan sejenisnya) termasuk kapal pendingin dan kapal tangki, kapal penangkap ikan dan sejenisnya, yang mempunyai berat di atas 1.000 DWT."]
[null,null,null,"f. Kapal dibuat khusus untuk menghela atau mendorong kapal, kapal suar, kapal pemadam kebakaran, kapal keruk, keran-keran terapung dan sebagainya, yang mempunyai berat di atas 1.000 DWT."]
[null,null,null,"g. Dok-dok terapung."]

{"sheet":"HD","index":6,"n_rows":6000,"n_cols":649,"rows_kept":6000,"cut":false,"hidden":true,"merged":[]}
[]
[null,"info"]
[]
[]
[]
[]
[]
[]
[]
[]
[]
[]
[]
[]
[]
[]
[]
[]
[]
[]
[]
[]
[]
[]
[]
[]
[]
[]
[]
[]
[]
[]
[]
[]
[]
[]
[]
[]
[]
[]
[]
[]
[]
[]
[]
[]
[]
[]
[]
[]
[]
[]
[]
[]
[]
[]
[]
[]
[]
[]
[]
[]
[]
[]
[]
[]
[]
[]
[]
[]
[]
[]
[]
[]
[]
[]
[]
[]
[]
[]
[]
[]
[]
[]
[]
[]
[]
[]
[]
[]
[]
[]
[]
[]
[]
[]
[]
[]
[]
[]
[]
[]
[]
[]
[]
[]
[]
[]
[]
[]
[]
[]
[]
[]
[]
[]
[]
[]
[]
[]
[]
[]
[]
[]
[]
[]
[]
[]
[]
[]
[]
[]
[]
[]
[]
[]
[]
[]
[]
[]
[]
[]
[]
[]
[]
[]
[]
[]
[]
[]
[]
[]
[]
[]
[]
[]
[]
[]
[]
[]
[]
[]
[]
[]
[]
[]
[]
[]
[]
[]
[]
[]
[]
[]
[]
[]
[]
[]
[]
[]
[]
[]
[]
[]
[]
[]
[]
[]
[]
[]
[]
[]
[]
[]
[]
[]
[]
[]
[]
[]
[]
[]
[]
[]
[]
[]
[]
[]
[]
[]
[]
[]
[]
[]
[]
[]
[]
[]
[]
[]
[]
[]
[]
[]
[]
[]
[]
[]
[]
[]
[]
[]
[]
[]
[]
[]
[]
[]
[]
[]
[]
[]
[]
[]
[]
[]
[]
[]
[]
[]
[]
[]
[]
[]
[]
[]
[]
[]
[]
[]
[]
[]
[]
[]
[]
[]
[]
[]
[]
[]
[]
[]
[]
[]
[]
[]
[]
[]
[]
[]
[]
[]
[]
[]
[]
[]
[]
[]
[]
[]
[]
[]
[]
[]
[]
[]
[]
[]
[]
[]
[]
[]
[]
[]
[]
[]
[]
[]
[]
[]
[]
[]
[]
[]
[]
[]
[]
[]
[]
[]
[]
[]
[]
[]
[]
[]
[]
[]
[]
[]
[]
[]
[]
[]
[]
[]
[]
[]
[]
[]
[]
[]
[]
[]
[]
[]
[]
[]
[]
[]
[]
[]
[]
[]
[]
[]
[]
[]
[]
[]
[]
[]
[]
[]
[]
[]
[]
[]
[]
[]
[]
[]
[]
[]
[]
[]
[]
[]
[]
[]
[]
[]
[]
[]
[]
[]
[]
[]
[]
[]
[]
[]
[]
[]
[]
[]
[]
[]
[]
[]
[]
[]
[]
[]
[]
[]
[]
[]
[]
[]
[]
[]
[]
[]
[]
[]
[]
[]
[]
[]
[]
[]
[]
[]
[]
[]
[]
[]
[]
[]
[]
[]
[]
[]
[]
[]
[]
[]
[]
[]
[]
[]
[]
[]
[]
[]
[]
[]
[]
[]
[]
[]
[]
[]
[]
[]
[]
[]
[]
[]
[]
[]
[]
[]
[]
[]
[]
[]
[]
[]
[]
[]
[]
[]
[]
[]
[]
[]
[]
[]
[]
[]
[]
[]
[]
[]
[]
[]
[]
[]
[]
[]
[]
[]
[]
[]
[]
[]
[]
[]
[]
[]
[]
[]
[]
[]
[]
[]
[]
[]
[]
[]
[]
[]
[]
[]
[]
[]
[]
[]
[]
[]
[]
[]
[]
[]
[]
[]
[]
[]
[]
[]
[]
[]
[]
[]
[]
[]
[]
[]
[]
[]
[]
[]
[]
[]
[]
[]
[]
[]
[]
[]
[]
[]
[]
[]
[]
[]
[]
[]
[]
[]
[]
[]
[]
[]
[]
[]
[]
[]
[]
[]
[]
[]
[]
[]
[]
[]
[]
[]
[]
[]
[]
[]
[]
[]
[]
[]
[]
[]
[]
[]
[]
[]
[]
[]
[]
[]
[]
[]
[]
[]
[]
[]
[]
[]
[]
[]
[]
[]
[]
[]
[]
[]
[]
[]
[]
[]
[]
[]
[]
[]
[]
[]
[]
[]
[]
[]
[]
[]
[]
[]
[]
[]
[]
[]
[]
[]
[]
[]
[]
[]
[]
[]
[]
[]
[]
[]
[]
[]
[]
[]
[]
[]
[]
[]
[]
[]
[]
[]
[]
[]
[]
[]
[]
[]
[]
[]
[]
[]
[]
[]
[]
[]
[]
[]
[]
[]
[]
[]
[]
[]
[]
[]
[]
[]
[]
[]
[]
[]
[]
[]
[]
[]
[]
[]
[]
[]
[]
[]
[]
[]
[]
[]
[]
[]
[]
[]
[]
[]
[]
[]
[]
[]
[]
[]
[]
[]
[]
[]
[]
[]
[]
[]
[]
[]
[]
[]
[]
[]
[]
[]
[]
[]
[]
[]
[]
[]
[]
[]
[]
[]
[]
[]
[]
[]
[]
[]
[]
[]
[]
[]
[]
[]
[]
[]
[]
[]
[]
[]
[]
[]
[]
[]
[]
[]
[]
[]
[]
[]
[]
[]
[]
[]
[]
[]
[]
[]
[]
[]
[]
[]
[]
[]
[]
[]
[]
[]
[]
[]
[]
[]
[]
[]
[]
[]
[]
[]
[]
[]
[]
[]
[]
[]
[]
[]
[]
[]
[]
[]
[]
[]
[]
[]
[]
[]
[]
[]
[]
[]
[]
[]
[]
[]
[]
[]
[]
[]
[]
[]
[]
[]
[]
[]
[]
[]
[]
[]
[]
[]
[]
[]
[]
[]
[]
[]
[]
[]
[]
[]
[]
[]
[]
[]
[]
[]
[]
[]
[]
[]
[]
[]
[]
[]
[]
[]
[]
[]
[]
[]
[]
[]
[]
[]
[]
[]
[]
[]
[]
[]
[]
[]
[]
[]
[]
[]
[]
[]
[]
[]
[]
[]
[]
[]
[]
[]
[]
[]
[]
[]
[]
[]
[]
[]
[]
[]
[]
[]
[]
[]
[]
[]
[]
[]
[]
[]
[]
[]
[]
[]
[]
[]
[]
[]
[]
[]
[]
[]
[]
[]
[]
[]
[]
[]
[]
[]
[]
[]
[]
[]
[]
[]
[]
[]
[]
[]
[]
[]
[]
[]
[]
[]
[]
[]
[]
[]
[]
[]
[]
[]
[]
[]
[]
[]
[]
[]
[]
[]
[]
[]
[]
[]
[]
[]
[]
[]
[]
[]
[]
[]
[]
[]
[]
[]
[]
[]
[]
[]
[]
[]
[]
[]
[]
[]
[]
[]
[]
[]
[]
[null,{"$f":"LEFT(RIGHT(Menu!A11,12),8)","v":"xclmedia"},null,null,null,null,null,null,null,null,null,null,null,null,null,null,null,null,null,null,null,null,null,null,null,null,null,null,null,null,null,null,null,null,null,null,null,null,null,null,null,null,null,null,null,null,null,null,null,null,null,null,null,null,null,null,null,null,null,null,null,null,null,null,null,null,null,null,null,null,null,null,null,null,null,null,null,null,null,null,null,null,null,null,null,null,null,null,null,null,null,null,null,null,null,null,null,null,null,null,null,null,null,null,null,null,null,null,null,null,null,null,null,null,null,null,null,null,null,null,null,null,null,null,null,null,null,null,null,null,null,null,null,null,null,null,null,null,null,null,null,null,null,null,null,null,null,null,null,null,null,null,null,null,null,null,null,null,null,null,null,null,null,null,null,null,null,null,null,null,null,null,null,null,null,null,null,null,null,null,null,null,null,null,null,null,null,null,null,null,null,null,null,null,null,null,null,null,null,null,null,null,null,null,null,null,null,null,null,null,null,null,null,null,null,null,null,null,null,null,null,null,null,null,null,null,null,null,null,null,null,null,null,null,null,null,null,null,null,null,null,null,null,null,null,null,null,null,null,null,null,null,null,null,null,null,null,null,null,null,null,null,null,null,null,null,null,null,null,null,null,null,null,null,null,null,null,null,null,null,null,null,null,null,null,null,null,null,null,null,null,null,null,null,null,null,null,null,null,null,null,null,null,null,null,null,null,null,null,null,null,null,null,null,null,null,null,null,null,null,null,null,null,null,null,null,null,null,null,null,null,null,null,null,null,null,null,null,null,null,null,null,null,null,null,null,null,null,null,null,null,null,null,null,null,null,null,null,null,null,null,null,null,null,null,null,null,null,null,null,null,null,null,null,null,null,null,null,null,null,null,null,null,null,null,null,null,null,null,null,null,null,null,null,null,null,null,null,null,null,null,null,null,null,null,null,null,null,null,null,null,null,null,null,null,null,null,null,null,null,null,null,null,null,null,null,null,null,null,null,null,null,null,null,null,null,null,null,null,null,null,null,null,null,null,null,null,null,null,null,null,null,null,null,null,null,null,null,null,null,null,null,null,null,null,null,null,null,null,null,null,null,null,null,null,null,null,null,null,null,null,null,null,null,null,null,null,null,null,null,null,null,null,null,null,null,null,null,null,null,null,null,null,null,null,null,null,null,null,null,null,null,null,null,null,null,null,null,null,null,null,null,null,null,null,null,null,null,null,null,null,null,null,null,null,null,null,null,null,null,null,null,null,null,null,null,null,null,null,null,null,null,null,null,null,null,null,null,null,null,null,null,null,null,null,null,null,null,null,null,null,null,null,null,null,null,null,null,null,null,null,null,null,null,null,null,null,null,null,null,null,null,null,null,null,null,null,null,null,null,null,null,null,null,null,null,null,null,null,null,null,null,null,null,null,null,null,null,null,null,null,null,null,null,null,null,null,null,null,null,null,null,null,null,null,null,null,null,null,null,null,null,null,null,null,null,null,null,"o@xcl"]
[]
[]
[]
[]
[]
[]
[]
[]
[]
[]
[]
[]
[]
[]
[]
[]
[]
[]
[]
[]
[]
[]
[]
[]
[]
[]
[]
[]
[]
[]
[]
[]
[]
[]
[]
[]
[]
[]
[]
[]
[]
[]
[]
[]
[]
[]
[]
[]
[]
[]
[]
[]
[]
[]
[]
[]
[]
[]
[]
[]
[]
[]
[]
[]
[]
[]
[]
[]
[]
[]
[]
[]
[]
[]
[]
[]
[]
[]
[]
[]
[]
[]
[]
[]
[]
[]
[]
[]
[]
[]
[]
[]
[]
[]
[]
[]
[]
[]
[]
[]
[]
[]
[]
[]
[]
[]
[]
[]
[]
[]
[]
[]
[]
[]
[]
[]
[]
[]
[]
[]
[]
[]
[]
[]
[]
[]
[]
[]
[]
[]
[]
[]
[]
[]
[]
[]
[]
[]
[]
[]
[]
[]
[]
[]
[]
[]
[]
[]
[]
[]
[]
[]
[]
[]
[]
[]
[]
[]
[]
[]
[]
[]
[]
[]
[]
[]
[]
[]
[]
[]
[]
[]
[]
[]
[]
[]
[]
[]
[]
[]
[]
[]
[]
[]
[]
[]
[]
[]
[]
[]
[]
[]
[]
[]
[]
[]
[]
[]
[]
[]
[]
[]
[]
[]
[]
[]
[]
[]
[]
[]
[]
[]
[]
[]
[]
[]
[]
[]
[]
[]
[]
[]
[]
[]
[]
[]
[]
[]
[]
[]
[]
[]
[]
[]
[]
[]
[]
[]
[]
[]
[]
[]
[]
[]
[]
[]
[]
[]
[]
[]
[]
[]
[]
[]
[]
[]
[]
[]
[]
[]
[]
[]
[]
[]
[]
[]
[]
[]
[]
[]
[]
[]
[]
[]
[]
[]
[]
[]
[]
[]
[]
[]
[]
[]
[]
[]
[]
[]
[]
[]
[]
[]
[]
[]
[]
[]
[]
[]
[]
[]
[]
[]
[]
[]
[]
[]
[]
[]
[]
[]
[]
[]
[]
[]
[]
[]
[]
[]
[]
[]
[]
[]
[]
[]
[]
[]
[]
[]
[]
[]
[]
[]
[]
[]
[]
[]
[]
[]
[]
[]
[]
[]
[]
[]
[]
[]
[]
[]
[]
[]
[]
[]
[]
[]
[]
[]
[]
[]
[]
[]
[]
[]
[]
[]
[]
[]
[]
[]
[]
[]
[]
[]
[]
[]
[]
[]
[]
[]
[]
[]
[]
[]
[]
[]
[]
[]
[]
[]
[]
[]
[]
[]
[]
[]
[]
[]
[]
[]
[]
[]
[]
[]
[]
[]
[]
[]
[]
[]
[]
[]
[]
[]
[]
[]
[]
[]
[]
[]
[]
[]
[]
[]
[]
[]
[]
[]
[]
[]
[]
[]
[]
[]
[]
[]
[]
[]
[]
[]
[]
[]
[]
[]
[]
[]
[]
[]
[]
[]
[]
[]
[]
[]
[]
[]
[]
[]
[]
[]
[]
[]
[]
[]
[]
[]
[]
[]
[]
[]
[]
[]
[]
[]
[]
[]
[]
[]
[]
[]
[]
[]
[]
[]
[]
[]
[]
[]
[]
[]
[]
[]
[]
[]
[]
[]
[]
[]
[]
[]
[]
[]
[]
[]
[]
[]
[]
[]
[]
[]
[]
[]
[]
[]
[]
[]
[]
[]
[]
[]
[]
[]
[]
[]
[]
[]
[]
[]
[]
[]
[]
[]
[]
[]
[]
[]
[]
[]
[]
[]
[]
[]
[]
[]
[]
[]
[]
[]
[]
[]
[]
[]
[]
[]
[]
[]
[]
[]
[]
[]
[]
[]
[]
[]
[]
[]
[]
[]
[]
[]
[]
[]
[]
[]
[]
[]
[]
[]
[]
[]
[]
[]
[]
[]
[]
[]
[]
[]
[]
[]
[]
[]
[]
[]
[]
[]
[]
[]
[]
[]
[]
[]
[]
[]
[]
[]
[]
[]
[]
[]
[]
[]
[]
[]
[]
[]
[]
[]
[]
[]
[]
[]
[]
[]
[]
[]
[]
[]
[]
[]
[]
[]
[]
[]
[]
[]
[]
[]
[]
[]
[]
[]
[]
[]
[]
[]
[]
[]
[]
[]
[]
[]
[]
[]
[]
[]
[]
[]
[]
[]
[]
[]
[]
[]
[]
[]
[]
[]
[]
[]
[]
[]
[]
[]
[]
[]
[]
[]
[]
[]
[]
[]
[]
[]
[]
[]
[]
[]
[]
[]
[]
[]
[]
[]
[]
[]
[]
[]
[]
[]
[]
[]
[]
[]
[]
[]
[]
[]
[]
[]
[]
[]
[]
[]
[]
[]
[]
[]
[]
[]
[]
[]
[]
[]
[]
[]
[]
[]
[]
[]
[]
[]
[]
[]
[]
[]
[]
[]
[]
[]
[]
[]
[]
[]
[]
[]
[]
[]
[]
[]
[]
[]
[]
[]
[]
[]
[]
[]
[]
[]
[]
[]
[]
[]
[]
[]
[]
[]
[]
[]
[]
[]
[]
[]
[]
[]
[]
[]
[]
[]
[]
[]
[]
[]
[]
[]
[]
[]
[]
[]
[]
[]
[]
[]
[]
[]
[]
[]
[]
[]
[]
[]
[]
[]
[]
[]
[]
[]
[]
[]
[]
[]
[]
[]
[]
[]
[]
[]
[]
[]
[]
[]
[]
[]
[]
[]
[]
[]
[]
[]
[]
[]
[]
[]
[]
[]
[]
[]
[]
[]
[]
[]
[]
[]
[]
[]
[]
[]
[]
[]
[]
[]
[]
[]
[]
[]
[]
[]
[]
[]
[]
[]
[]
[]
[]
[]
[]
[]
[]
[]
[]
[]
[]
[]
[]
[]
[]
[]
[]
[]
[]
[]
[]
[]
[]
[]
[]
[]
[]
[]
[]
[]
[]
[]
[]
[]
[]
[]
[]
[]
[]
[]
[]
[]
[]
[]
[]
[]
[]
[]
[]
[]
[]
[]
[]
[]
[]
[]
[]
[]
[]
[]
[]
[]
[]
[]
[]
[]
[]
[]
[]
[]
[]
[]
[]
[]
[]
[]
[]
[]
[]
[]
[]
[]
[]
[]
[]
[]
[]
[]
[]
[]
[]
[]
[]
[]
[]
[]
[]
[]
[]
[]
[]
[]
[]
[]
[]
[]
[]
[]
[]
[]
[]
[]
[]
[]
[]
[]
[]
[]
[]
[]
[]
[]
[]
[]
[]
[]
[]
[]
[]
[]
[]
[]
[]
[]
[]
[]
[]
[]
[]
[null,{"$f":"IF(AND(COUNTBLANK(Reg!A24:X24)=24,COUNTBLANK(Reg!X1:X24)=24,LEFT(Reg!D6,4)=B2),0,\"#\")","v":0}]
[]
[]
[]
[]
[]
[]
[]
[]
[]
[]
[]
[]
[]
[]
[]
[]
[]
[]
[]
[]
[]
[]
[]
[]
[]
[]
[]
[]
[]
[]
[]
[]
[]
[]
[]
[]
[]
[]
[]
[]
[]
[]
[]
[]
[]
[]
[]
[]
[]
[]
[]
[]
[]
[]
[]
[]
[]
[]
[]
[]
[]
[]
[]
[]
[]
[]
[]
[]
[]
[]
[]
[]
[]
[]
[]
[]
[]
[]
[]
[]
[]
[]
[]
[]
[]
[]
[]
[]
[]
[]
[]
[]
[]
[]
[]
[]
[]
[]
[]
[]
[]
[]
[]
[]
[]
[]
[]
[]
[]
[]
[]
[]
[]
[]
[]
[]
[]
[]
[]
[]
[]
[]
[]
[]
[]
[]
[]
[]
[]
[]
[]
[]
[]
[]
[]
[]
[]
[]
[]
[]
[]
[]
[]
[]
[]
[]
[]
[]
[]
[]
[]
[]
[]
[]
[]
[]
[]
[]
[]
[]
[]
[]
[]
[]
[]
[]
[]
[]
[]
[]
[]
[]
[]
[]
[]
[]
[]
[]
[]
[]
[]
[]
[]
[]
[]
[]
[]
[]
[]
[]
[]
[]
[]
[]
[]
[]
[]
[]
[]
[]
[]
[]
[]
[]
[]
[]
[]
[]
[]
[]
[]
[]
[]
[]
[]
[]
[]
[]
[]
[]
[]
[]
[]
[]
[]
[]
[]
[]
[]
[]
[]
[]
[]
[]
[]
[]
[]
[]
[]
[]
[]
[]
[]
[]
[]
[]
[]
[]
[]
[]
[]
[]
[]
[]
[]
[]
[]
[]
[]
[]
[]
[]
[]
[]
[]
[]
[]
[]
[]
[]
[]
[]
[]
[]
[]
[]
[]
[]
[]
[]
[]
[]
[]
[]
[]
[]
[]
[]
[]
[]
[]
[]
[]
[]
[]
[]
[]
[]
[]
[]
[]
[]
[]
[]
[]
[]
[]
[]
[]
[]
[]
[]
[]
[]
[]
[]
[]
[]
[]
[]
[]
[]
[]
[]
[]
[]
[]
[]
[]
[]
[]
[]
[]
[]
[]
[]
[]
[]
[]
[]
[]
[]
[]
[]
[]
[]
[]
[]
[]
[]
[]
[]
[]
[]
[]
[]
[]
[]
[]
[]
[]
[]
[]
[]
[]
[]
[]
[]
[]
[]
[]
[]
[]
[]
[]
[]
[]
[]
[]
[]
[]
[]
[]
[]
[]
[]
[]
[]
[]
[]
[]
[]
[]
[]
[]
[]
[]
[]
[]
[]
[]
[]
[]
[]
[]
[]
[]
[]
[]
[]
[]
[]
[]
[]
[]
[]
[]
[]
[]
[]
[]
[]
[]
[]
[]
[]
[]
[]
[]
[]
[]
[]
[]
[]
[]
[]
[]
[]
[]
[]
[]
[]
[]
[]
[]
[]
[]
[]
[]
[]
[]
[]
[]
[]
[]
[]
[]
[]
[]
[]
[]
[]
[]
[]
[]
[]
[]
[]
[]
[]
[]
[]
[]
[]
[]
[]
[]
[]
[]
[]
[]
[]
[]
[]
[]
[]
[]
[]
[]
[]
[]
[]
[]
[]
[]
[]
[]
[]
[]
[]
[]
[]
[]
[]
[]
[]
[]
[]
[]
[]
[]
[]
[]
[]
[]
[]
[]
[]
[]
[]
[]
[]
[]
[]
[]
[]
[]
[]
[]
[]
[]
[]
[]
[]
[]
[]
[]
[]
[]
[]
[]
[]
[]
[]
[]
[]
[]
[]
[]
[]
[]
[]
[]
[]
[]
[]
[]
[]
[]
[]
[]
[]
[]
[]
[]
[]
[]
[]
[]
[]
[]
[]
[]
[]
[]
[]
[]
[]
[]
[]
[]
[]
[]
[]
[]
[]
[]
[]
[]
[]
[]
[]
[]
[]
[]
[]
[]
[]
[]
[]
[]
[]
[]
[]
[]
[]
[]
[]
[]
[]
[]
[]
[]
[]
[]
[]
[]
[]
[]
[]
[]
[]
[]
[]
[]
[]
[]
[]
[]
[]
[]
[]
[]
[]
[]
[]
[]
[]
[]
[]
[]
[]
[]
[]
[]
[]
[]
[]
[]
[]
[]
[]
[]
[]
[]
[]
[]
[]
[]
[]
[]
[]
[]
[]
[]
[]
[]
[]
[]
[]
[]
[]
[]
[]
[]
[]
[]
[]
[]
[]
[]
[]
[]
[]
[]
[]
[]
[]
[]
[]
[]
[]
[]
[]
[]
[]
[]
[]
[]
[]
[]
[]
[]
[]
[]
[]
[]
[]
[]
[]
[]
[]
[]
[]
[]
[]
[]
[]
[]
[]
[]
[]
[]
[]
[]
[]
[]
[]
[]
[]
[]
[]
[]
[]
[]
[]
[]
[]
[]
[]
[]
[]
[]
[]
[]
[]
[]
[]
[]
[]
[]
[]
[]
[]
[]
[]
[]
[]
[]
[]
[]
[]
[]
[]
[]
[]
[]
[]
[]
[]
[]
[]
[]
[]
[]
[]
[]
[]
[]
[]
[]
[]
[]
[]
[]
[]
[]
[]
[]
[]
[]
[]
[]
[]
[]
[]
[]
[]
[]
[]
[]
[]
[]
[]
[]
[]
[]
[]
[]
[]
[]
[]
[]
[]
[]
[]
[]
[]
[]
[]
[]
[]
[]
[]
[]
[]
[]
[]
[]
[]
[]
[]
[]
[]
[]
[]
[]
[]
[]
[]
[]
[]
[]
[]
[]
[]
[]
[]
[]
[]
[]
[]
[]
[]
[]
[]
[]
[]
[]
[]
[]
[]
[]
[]
[]
[]
[]
[]
[]
[]
[]
[]
[]
[]
[]
[]
[]
[]
[]
[]
[]
[]
[]
[]
[]
[]
[]
[]
[]
[]
[]
[]
[]
[]
[]
[]
[]
[]
[]
[]
[]
[]
[]
[]
[]
[]
[]
[]
[]
[]
[]
[]
[]
[]
[]
[]
[]
[]
[]
[]
[]
[]
[]
[]
[]
[]
[]
[]
[]
[]
[]
[]
[]
[]
[]
[]
[]
[]
[]
[]
[]
[]
[]
[]
[]
[]
[]
[]
[]
[]
[]
[]
[]
[]
[]
[]
[]
[]
[]
[]
[]
[]
[]
[]
[]
[]
[]
[]
[]
[]
[]
[]
[]
[]
[]
[]
[]
[]
[]
[]
[]
[]
[]
[]
[]
[]
[]
[]
[]
[]
[]
[]
[]
[]
[]
[]
[]
[]
[]
[null,{"$f":"IF(AND(COUNTBLANK(Menu!A24:AB24)=28,COUNTBLANK(Menu!AB1:AB24)=24,LEFT(Reg!D6,4)=B2),0,\"#\")","v":0},null,null,null,null,null,null,null,null,null,null,null,null,null,null,null,null,null,null,null,null,null,null,null,null,null,null,null,null,null,null,null,null,null,null,null,null,null,null,null,null,null,null,null,null,null,null,null,null,null,null,null,null,null,null,null,null,null,null,null,null,null,null,null,null,null,null,null,null,null,null,null,null,null,null,null,null,null,null,null,null,null,null,null,null,null,null,null,null,null,null,null,null,null,null,null,null,null,null,null,null,null,null,null,null,null,null,null,null,null,null,null,null,null,null,null,null,null,null,null,null,null,null,null,null,null,null,null,null,null,null,null,null,null,null,null,null,null,null,null,null,null,null,null,null,null,null,null,null,null,null,null,null,null,null,null,null,null,null,null,null,null,null,null,null,null,null,null,null,null,null,null,null,null,null,null,null,null,null,null,null,null,null,null,null,null,null,null,null,null,null,null,null,null,null,null,null,null,null,null,null,null,null,null,null,null,null,null,null,null,null,null,null,null,null,null,null,null,null,null,null,null,null,null,null,null,null,null,null,null,null,null,null,null,null,null,null,null,null,null,null,null,null,null,null,null,null,null,null,null,null,null,null,null,null,null,null,null,null,null,null,null,null,null,null,null,null,null,null,null,null,null,null,null,null,null,null,null,null,null,null,null,null,null,null,null,null,null,null,null,null,null,null,null,null,null,null,null,null,null,null,null,null,null,null,null,null,null,null,null,null,null,null,null,null,null,null,null,null,null,null,null,null,null,null,null,null,null,null,null,null,null,null,null,null,null,null,null,null,null,null,null,null,null,null,null,null,null,null,null,null,null,null,null,null,null,null,null,null,null,null,null,null,null,null,null,null,null,null,null,null,null,null,null,null,null,null,null,null,null,null,null,null,null,null,null,null,null,null,null,null,null,null,null,null,null,null,null,null,null,null,null,null,null,null,null,null,null,null,null,null,null,null,null,null,null,null,null,null,null,null,null,null,null,null,null,null,null,null,null,null,null,null,null,null,null,null,null,null,null,null,null,null,null,null,null,null,null,null,null,null,null,null,null,null,null,null,null,null,null,null,null,null,null,null,null,null,null,null,null,null,null,null,null,null,null,null,null,null,null,null,null,null,null,null,null,null,null,null,null,null,null,null,null,null,null,null,null,null,null,null,null,null,null,null,null,null,null,null,null,null,null,null,null,null,null,null,null,null,null,null,null,null,null,null,null,null,null,null,null,null,null,null,null,null,null,null,null,null,null,null,null,null,null,null,null,null,null,null,null,null,null,null,null,null,null,null,null,null,null,null,null,null,null,null,null,null,null,null,null,null,null,null,null,null,null,null,null,null,null,null,null,null,null,null,null,null,null,null,null,null,null,null,null,null,null,null,null,null,null,null,null,null,null,null,null,null,null,null,null,null,null,null,null,null,null,null,null,null,null,null,null,null,null,null,null,null,null,null,null,null,null,null,null,null,null,null,null,null,null,null,null,null,null,null,null,null,{"$f":"IF(AND(COUNTBLANK(Menu!A2:I4)=27,COUNTA(Menu!B5:D10)+COUNTA(Menu!A11:I11)=8),B3000+XY6000,\"#\")","v":0}]
[]
[]
[]
[]
[]
[]
[]
[]
[]
[]
[]
[]
[]
[]
[]
[]
[]
[]
[]
[]
[]
[]
[]
[]
[]
[]
[]
[]
[]
[]
[]
[]
[]
[]
[]
[]
[]
[]
[]
[]
[]
[]
[]
[]
[]
[]
[]
[]
[]
[]
[]
[]
[]
[]
[]
[]
[]
[]
[]
[]
[]
[]
[]
[]
[]
[]
[]
[]
[]
[]
[]
[]
[]
[]
[]
[]
[]
[]
[]
[]
[]
[]
[]
[]
[]
[]
[]
[]
[]
[]
[]
[]
[]
[]
[]
[]
[]
[]
[]
[]
[]
[]
[]
[]
[]
[]
[]
[]
[]
[]
[]
[]
[]
[]
[]
[]
[]
[]
[]
[]
[]
[]
[]
[]
[]
[]
[]
[]
[]
[]
[]
[]
[]
[]
[]
[]
[]
[]
[]
[]
[]
[]
[]
[]
[]
[]
[]
[]
[]
[]
[]
[]
[]
[]
[]
[]
[]
[]
[]
[]
[]
[]
[]
[]
[]
[]
[]
[]
[]
[]
[]
[]
[]
[]
[]
[]
[]
[]
[]
[]
[]
[]
[]
[]
[]
[]
[]
[]
[]
[]
[]
[]
[]
[]
[]
[]
[]
[]
[]
[]
[]
[]
[]
[]
[]
[]
[]
[]
[]
[]
[]
[]
[]
[]
[]
[]
[]
[]
[]
[]
[]
[]
[]
[]
[]
[]
[]
[]
[]
[]
[]
[]
[]
[]
[]
[]
[]
[]
[]
[]
[]
[]
[]
[]
[]
[]
[]
[]
[]
[]
[]
[]
[]
[]
[]
[]
[]
[]
[]
[]
[]
[]
[]
[]
[]
[]
[]
[]
[]
[]
[]
[]
[]
[]
[]
[]
[]
[]
[]
[]
[]
[]
[]
[]
[]
[]
[]
[]
[]
[]
[]
[]
[]
[]
[]
[]
[]
[]
[]
[]
[]
[]
[]
[]
[]
[]
[]
[]
[]
[]
[]
[]
[]
[]
[]
[]
[]
[]
[]
[]
[]
[]
[]
[]
[]
[]
[]
[]
[]
[]
[]
[]
[]
[]
[]
[]
[]
[]
[]
[]
[]
[]
[]
[]
[]
[]
[]
[]
[]
[]
[]
[]
[]
[]
[]
[]
[]
[]
[]
[]
[]
[]
[]
[]
[]
[]
[]
[]
[]
[]
[]
[]
[]
[]
[]
[]
[]
[]
[]
[]
[]
[]
[]
[]
[]
[]
[]
[]
[]
[]
[]
[]
[]
[]
[]
[]
[]
[]
[]
[]
[]
[]
[]
[]
[]
[]
[]
[]
[]
[]
[]
[]
[]
[]
[]
[]
[]
[]
[]
[]
[]
[]
[]
[]
[]
[]
[]
[]
[]
[]
[]
[]
[]
[]
[]
[]
[]
[]
[]
[]
[]
[]
[]
[]
[]
[]
[]
[]
[]
[]
[]
[]
[]
[]
[]
[]
[]
[]
[]
[]
[]
[]
[]
[]
[]
[]
[]
[]
[]
[]
[]
[]
[]
[]
[]
[]
[]
[]
[]
[]
[]
[]
[]
[]
[]
[]
[]
[]
[]
[]
[]
[]
[]
[]
[]
[]
[]
[]
[]
[]
[]
[]
[]
[]
[]
[]
[]
[]
[]
[]
[]
[]
[]
[]
[]
[]
[]
[]
[]
[]
[]
[]
[]
[]
[]
[]
[]
[]
[]
[]
[]
[]
[]
[]
[]
[]
[]
[]
[]
[]
[]
[]
[]
[]
[]
[]
[]
[]
[]
[]
[]
[]
[]
[]
[]
[]
[]
[]
[]
[]
[]
[]
[]
[]
[]
[]
[]
[]
[]
[]
[]
[]
[]
[]
[]
[]
[]
[]
[]
[]
[]
[]
[]
[]
[]
[]
[]
[]
[]
[]
[]
[]
[]
[]
[]
[]
[]
[]
[]
[]
[]
[]
[]
[]
[]
[]
[]
[]
[]
[]
[]
[]
[]
[]
[]
[]
[]
[]
[]
[]
[]
[]
[]
[]
[]
[]
[]
[]
[]
[]
[]
[]
[]
[]
[]
[]
[]
[]
[]
[]
[]
[]
[]
[]
[]
[]
[]
[]
[]
[]
[]
[]
[]
[]
[]
[]
[]
[]
[]
[]
[]
[]
[]
[]
[]
[]
[]
[]
[]
[]
[]
[]
[]
[]
[]
[]
[]
[]
[]
[]
[]
[]
[]
[]
[]
[]
[]
[]
[]
[]
[]
[]
[]
[]
[]
[]
[]
[]
[]
[]
[]
[]
[]
[]
[]
[]
[]
[]
[]
[]
[]
[]
[]
[]
[]
[]
[]
[]
[]
[]
[]
[]
[]
[]
[]
[]
[]
[]
[]
[]
[]
[]
[]
[]
[]
[]
[]
[]
[]
[]
[]
[]
[]
[]
[]
[]
[]
[]
[]
[]
[]
[]
[]
[]
[]
[]
[]
[]
[]
[]
[]
[]
[]
[]
[]
[]
[]
[]
[]
[]
[]
[]
[]
[]
[]
[]
[]
[]
[]
[]
[]
[]
[]
[]
[]
[]
[]
[]
[]
[]
[]
[]
[]
[]
[]
[]
[]
[]
[]
[]
[]
[]
[]
[]
[]
[]
[]
[]
[]
[]
[]
[]
[]
[]
[]
[]
[]
[]
[]
[]
[]
[]
[]
[]
[]
[]
[]
[]
[]
[]
[]
[]
[]
[]
[]
[]
[]
[]
[]
[]
[]
[]
[]
[]
[]
[]
[]
[]
[]
[]
[]
[]
[]
[]
[]
[]
[]
[]
[]
[]
[]
[]
[]
[]
[]
[]
[]
[]
[]
[]
[]
[]
[]
[]
[]
[]
[]
[]
[]
[]
[]
[]
[]
[]
[]
[]
[]
[]
[]
[]
[]
[]
[]
[]
[]
[]
[]
[]
[]
[]
[]
[]
[]
[]
[]
[]
[]
[]
[]
[]
[]
[]
[]
[]
[]
[]
[]
[]
[]
[]
[]
[]
[]
[]
[]
[]
[]
[]
[]
[]
[]
[]
[]
[]
[]
[]
[]
[]
[]
[]
[]
[]
[]
[]
[]
[]
[]
[]
[]
[]
[]
[]
[]
[]
[]
[]
[]
[]
[]
[]
[]
[]
[]
[]
[]
[]
[]
[]
[]
[]
[]
[]
[]
[]
[]
[]
[]
[]
[]
[]
[]
[]
[]
[]
[]
[]
[]
[]
[]
[]
[]
[]
[]
[]
[]
[]
[]
[]
[]
[null,{"$f":"IF(B1000=B5000,0,\"#\")","v":0},null,null,null,null,null,null,null,null,null,null,null,null,null,null,null,null,null,null,null,null,null,null,null,null,null,null,null,null,null,null,null,null,null,null,null,null,null,null,null,null,null,null,null,null,null,null,null,null,null,null,null,null,null,null,null,null,null,null,null,null,null,null,null,null,null,null,null,null,null,null,null,null,null,null,null,null,null,null,null,null,null,null,null,null,null,null,null,null,null,null,null,null,null,null,null,null,null,null,null,null,null,null,null,null,null,null,null,null,null,null,null,null,null,null,null,null,null,null,null,null,null,null,null,null,null,null,null,null,null,null,null,null,null,null,null,null,null,null,null,null,null,null,null,null,null,null,null,null,null,null,null,null,null,null,null,null,null,null,null,null,null,null,null,null,null,null,null,null,null,null,null,null,null,null,null,null,null,null,null,null,null,null,null,null,null,null,null,null,null,null,null,null,null,null,null,null,null,null,null,null,null,null,null,null,null,null,null,null,null,null,null,null,null,null,null,null,null,null,null,null,null,null,null,null,null,null,null,null,null,null,null,null,null,null,null,null,null,null,null,null,null,null,null,null,null,null,null,null,null,null,null,null,null,null,null,null,null,null,null,null,null,null,null,null,null,null,null,null,null,null,null,null,null,null,null,null,null,null,null,null,null,null,null,null,null,null,null,null,null,null,null,null,null,null,null,null,null,null,null,null,null,null,null,null,null,null,null,null,null,null,null,null,null,null,null,null,null,null,null,null,null,null,null,null,null,null,null,null,null,null,null,null,null,null,null,null,null,null,null,null,null,null,null,null,null,null,null,null,null,null,null,null,null,null,null,null,null,null,null,null,null,null,null,null,null,null,null,null,null,null,null,null,null,null,null,null,null,null,null,null,null,null,null,null,null,null,null,null,null,null,null,null,null,null,null,null,null,null,null,null,null,null,null,null,null,null,null,null,null,null,null,null,null,null,null,null,null,null,null,null,null,null,null,null,null,null,null,null,null,null,null,null,null,null,null,null,null,null,null,null,null,null,null,null,null,null,null,null,null,null,null,null,null,null,null,null,null,null,null,null,null,null,null,null,null,null,null,null,null,null,null,null,null,null,null,null,null,null,null,null,null,null,null,null,null,null,null,null,null,null,null,null,null,null,null,null,null,null,null,null,null,null,null,null,null,null,null,null,null,null,null,null,null,null,null,null,null,null,null,null,null,null,null,null,null,null,null,null,null,null,null,null,null,null,null,null,null,null,null,null,null,null,null,null,null,null,null,null,null,null,null,null,null,null,null,null,null,null,null,null,null,null,null,null,null,null,null,null,null,null,null,null,null,null,null,null,null,null,null,null,null,null,null,null,null,null,null,null,null,null,null,null,null,null,null,null,null,null,null,null,null,null,null,null,null,null,null,null,null,null,null,null,null,null,null,null,null,null,null,null,null,null,null,null,null,null,null,null,null,null,null,null,null,null,null,null,null,null,null,null,null,null,null,null,null,null,{"$f":"B4000","v":0}]
[]
[]
[]
[]
[]
[]
[]
[]
[]
[]
[]
[]
[]
[]
[]
[]
[]
[]
[]
[]
[]
[]
[]
[]
[]
[]
[]
[]
[]
[]
[]
[]
[]
[]
[]
[]
[]
[]
[]
[]
[]
[]
[]
[]
[]
[]
[]
[]
[]
[]
[]
[]
[]
[]
[]
[]
[]
[]
[]
[]
[]
[]
[]
[]
[]
[]
[]
[]
[]
[]
[]
[]
[]
[]
[]
[]
[]
[]
[]
[]
[]
[]
[]
[]
[]
[]
[]
[]
[]
[]
[]
[]
[]
[]
[]
[]
[]
[]
[]
[]
[]
[]
[]
[]
[]
[]
[]
[]
[]
[]
[]
[]
[]
[]
[]
[]
[]
[]
[]
[]
[]
[]
[]
[]
[]
[]
[]
[]
[]
[]
[]
[]
[]
[]
[]
[]
[]
[]
[]
[]
[]
[]
[]
[]
[]
[]
[]
[]
[]
[]
[]
[]
[]
[]
[]
[]
[]
[]
[]
[]
[]
[]
[]
[]
[]
[]
[]
[]
[]
[]
[]
[]
[]
[]
[]
[]
[]
[]
[]
[]
[]
[]
[]
[]
[]
[]
[]
[]
[]
[]
[]
[]
[]
[]
[]
[]
[]
[]
[]
[]
[]
[]
[]
[]
[]
[]
[]
[]
[]
[]
[]
[]
[]
[]
[]
[]
[]
[]
[]
[]
[]
[]
[]
[]
[]
[]
[]
[]
[]
[]
[]
[]
[]
[]
[]
[]
[]
[]
[]
[]
[]
[]
[]
[]
[]
[]
[]
[]
[]
[]
[]
[]
[]
[]
[]
[]
[]
[]
[]
[]
[]
[]
[]
[]
[]
[]
[]
[]
[]
[]
[]
[]
[]
[]
[]
[]
[]
[]
[]
[]
[]
[]
[]
[]
[]
[]
[]
[]
[]
[]
[]
[]
[]
[]
[]
[]
[]
[]
[]
[]
[]
[]
[]
[]
[]
[]
[]
[]
[]
[]
[]
[]
[]
[]
[]
[]
[]
[]
[]
[]
[]
[]
[]
[]
[]
[]
[]
[]
[]
[]
[]
[]
[]
[]
[]
[]
[]
[]
[]
[]
[]
[]
[]
[]
[]
[]
[]
[]
[]
[]
[]
[]
[]
[]
[]
[]
[]
[]
[]
[]
[]
[]
[]
[]
[]
[]
[]
[]
[]
[]
[]
[]
[]
[]
[]
[]
[]
[]
[]
[]
[]
[]
[]
[]
[]
[]
[]
[]
[]
[]
[]
[]
[]
[]
[]
[]
[]
[]
[]
[]
[]
[]
[]
[]
[]
[]
[]
[]
[]
[]
[]
[]
[]
[]
[]
[]
[]
[]
[]
[]
[]
[]
[]
[]
[]
[]
[]
[]
[]
[]
[]
[]
[]
[]
[]
[]
[]
[]
[]
[]
[]
[]
[]
[]
[]
[]
[]
[]
[]
[]
[]
[]
[]
[]
[]
[]
[]
[]
[]
[]
[]
[]
[]
[]
[]
[]
[]
[]
[]
[]
[]
[]
[]
[]
[]
[]
[]
[]
[]
[]
[]
[]
[]
[]
[]
[]
[]
[]
[]
[]
[]
[]
[]
[]
[]
[]
[]
[]
[]
[]
[]
[]
[]
[]
[]
[]
[]
[]
[]
[]
[]
[]
[]
[]
[]
[]
[]
[]
[]
[]
[]
[]
[]
[]
[]
[]
[]
[]
[]
[]
[]
[]
[]
[]
[]
[]
[]
[]
[]
[]
[]
[]
[]
[]
[]
[]
[]
[]
[]
[]
[]
[]
[]
[]
[]
[]
[]
[]
[]
[]
[]
[]
[]
[]
[]
[]
[]
[]
[]
[]
[]
[]
[]
[]
[]
[]
[]
[]
[]
[]
[]
[]
[]
[]
[]
[]
[]
[]
[]
[]
[]
[]
[]
[]
[]
[]
[]
[]
[]
[]
[]
[]
[]
[]
[]
[]
[]
[]
[]
[]
[]
[]
[]
[]
[]
[]
[]
[]
[]
[]
[]
[]
[]
[]
[]
[]
[]
[]
[]
[]
[]
[]
[]
[]
[]
[]
[]
[]
[]
[]
[]
[]
[]
[]
[]
[]
[]
[]
[]
[]
[]
[]
[]
[]
[]
[]
[]
[]
[]
[]
[]
[]
[]
[]
[]
[]
[]
[]
[]
[]
[]
[]
[]
[]
[]
[]
[]
[]
[]
[]
[]
[]
[]
[]
[]
[]
[]
[]
[]
[]
[]
[]
[]
[]
[]
[]
[]
[]
[]
[]
[]
[]
[]
[]
[]
[]
[]
[]
[]
[]
[]
[]
[]
[]
[]
[]
[]
[]
[]
[]
[]
[]
[]
[]
[]
[]
[]
[]
[]
[]
[]
[]
[]
[]
[]
[]
[]
[]
[]
[]
[]
[]
[]
[]
[]
[]
[]
[]
[]
[]
[]
[]
[]
[]
[]
[]
[]
[]
[]
[]
[]
[]
[]
[]
[]
[]
[]
[]
[]
[]
[]
[]
[]
[]
[]
[]
[]
[]
[]
[]
[]
[]
[]
[]
[]
[]
[]
[]
[]
[]
[]
[]
[]
[]
[]
[]
[]
[]
[]
[]
[]
[]
[]
[]
[]
[]
[]
[]
[]
[]
[]
[]
[]
[]
[]
[]
[]
[]
[]
[]
[]
[]
[]
[]
[]
[]
[]
[]
[]
[]
[]
[]
[]
[]
[]
[]
[]
[]
[]
[]
[]
[]
[]
[]
[]
[]
[]
[]
[]
[]
[]
[]
[]
[]
[]
[]
[]
[]
[]
[]
[]
[]
[]
[]
[]
[]
[]
[]
[]
[]
[]
[]
[]
[]
[]
[]
[]
[]
[]
[]
[]
[]
[]
[]
[]
[]
[]
[]
[]
[]
[]
[]
[]
[]
[]
[]
[]
[]
[]
[]
[]
[]
[]
[]
[]
[]
[]
[]
[]
[]
[]
[]
[]
[]
[]
[]
[]
[]
[]
[]
[]
[]
[]
[]
[]
[]
[]
[]
[]
[]
[]
[]
[]
[]
[]
[]
[]
[]
[]
[]
[]
[]
[]
[]
[]
[]
[]
[]
[]
[]
[]
[]
[]
[]
[]
[]
[]
[]
[]
[]
[]
[]
[]
[]
[]
[]
[]
[]
[]
[]
[]
[]
[]
[]
[]
[]
[]
[]
[]
[]
[]
[]
[]
[]
[]
[]
[]
[]
[]
[]
[]
[]
[]
[]
[]
[]
[]
[]
[]
[null,{"$f":"LEFT(RIGHT(Reg!D6,12),8)","v":"xclmedia"},null,null,null,null,null,null,null,null,null,null,null,null,null,null,null,null,null,null,null,null,null,null,null,null,null,null,null,null,null,null,null,null,null,null,null,null,null,null,null,null,null,null,null,null,null,null,null,null,null,null,null,null,null,null,null,null,null,null,null,null,null,null,null,null,null,null,null,null,null,null,null,null,null,null,null,null,null,null,null,null,null,null,null,null,null,null,null,null,null,null,null,null,null,null,null,null,null,null,null,null,null,null,null,null,null,null,null,null,null,null,null,null,null,null,null,null,null,null,null,null,null,null,null,null,null,null,null,null,null,null,null,null,null,null,null,null,null,null,null,null,null,null,null,null,null,null,null,null,null,null,null,null,null,null,null,null,null,null,null,null,null,null,null,null,null,null,null,null,null,null,null,null,null,null,null,null,null,null,null,null,null,null,null,null,null,null,null,null,null,null,null,null,null,null,null,null,null,null,null,null,null,null,null,null,null,null,null,null,null,null,null,null,null,null,null,null,null,null,null,null,null,null,null,null,null,null,null,null,null,null,null,null,null,null,null,null,null,null,null,null,null,null,null,null,null,null,null,null,null,null,null,null,null,null,null,null,null,null,null,null,null,null,null,null,null,null,null,null,null,null,null,null,null,null,null,null,null,null,null,null,null,null,null,null,null,null,null,null,null,null,null,null,null,null,null,null,null,null,null,null,null,null,null,null,null,null,null,null,null,null,null,null,null,null,null,null,null,null,null,null,null,null,null,null,null,null,null,null,null,null,null,null,null,null,null,null,null,null,null,null,null,null,null,null,null,null,null,null,null,null,null,null,null,null,null,null,null,null,null,null,null,null,null,null,null,null,null,null,null,null,null,null,null,null,null,null,null,null,null,null,null,null,null,null,null,null,null,null,null,null,null,null,null,null,null,null,null,null,null,null,null,null,null,null,null,null,null,null,null,null,null,null,null,null,null,null,null,null,null,null,null,null,null,null,null,null,null,null,null,null,null,null,null,null,null,null,null,null,null,null,null,null,null,null,null,null,null,null,null,null,null,null,null,null,null,null,null,null,null,null,null,null,null,null,null,null,null,null,null,null,null,null,null,null,null,null,null,null,null,null,null,null,null,null,null,null,null,null,null,null,null,null,null,null,null,null,null,null,null,null,null,null,null,null,null,null,null,null,null,null,null,null,null,null,null,null,null,null,null,null,null,null,null,null,null,null,null,null,null,null,null,null,null,null,null,null,null,null,null,null,null,null,null,null,null,null,null,null,null,null,null,null,null,null,null,null,null,null,null,null,null,null,null,null,null,null,null,null,null,null,null,null,null,null,null,null,null,null,null,null,null,null,null,null,null,null,null,null,null,null,null,null,null,null,null,null,null,null,null,null,null,null,null,null,null,null,null,null,null,null,null,null,null,null,null,null,null,null,null,null,null,null,null,null,null,null,null,null,null,null,null,null,null,null,null,null,null,null,null,null,null,null,null,null,null,null,"info@xclmedia.com"]
[]
[]
[]
[]
[]
[]
[]
[]
[]
[]
[]
[]
[]
[]
[]
[]
[]
[]
[]
[]
[]
[]
[]
[]
[]
[]
[]
[]
[]
[]
[]
[]
[]
[]
[]
[]
[]
[]
[]
[]
[]
[]
[]
[]
[]
[]
[]
[]
[]
[]
[]
[]
[]
[]
[]
[]
[]
[]
[]
[]
[]
[]
[]
[]
[]
[]
[]
[]
[]
[]
[]
[]
[]
[]
[]
[]
[]
[]
[]
[]
[]
[]
[]
[]
[]
[]
[]
[]
[]
[]
[]
[]
[]
[]
[]
[]
[]
[]
[]
[]
[]
[]
[]
[]
[]
[]
[]
[]
[]
[]
[]
[]
[]
[]
[]
[]
[]
[]
[]
[]
[]
[]
[]
[]
[]
[]
[]
[]
[]
[]
[]
[]
[]
[]
[]
[]
[]
[]
[]
[]
[]
[]
[]
[]
[]
[]
[]
[]
[]
[]
[]
[]
[]
[]
[]
[]
[]
[]
[]
[]
[]
[]
[]
[]
[]
[]
[]
[]
[]
[]
[]
[]
[]
[]
[]
[]
[]
[]
[]
[]
[]
[]
[]
[]
[]
[]
[]
[]
[]
[]
[]
[]
[]
[]
[]
[]
[]
[]
[]
[]
[]
[]
[]
[]
[]
[]
[]
[]
[]
[]
[]
[]
[]
[]
[]
[]
[]
[]
[]
[]
[]
[]
[]
[]
[]
[]
[]
[]
[]
[]
[]
[]
[]
[]
[]
[]
[]
[]
[]
[]
[]
[]
[]
[]
[]
[]
[]
[]
[]
[]
[]
[]
[]
[]
[]
[]
[]
[]
[]
[]
[]
[]
[]
[]
[]
[]
[]
[]
[]
[]
[]
[]
[]
[]
[]
[]
[]
[]
[]
[]
[]
[]
[]
[]
[]
[]
[]
[]
[]
[]
[]
[]
[]
[]
[]
[]
[]
[]
[]
[]
[]
[]
[]
[]
[]
[]
[]
[]
[]
[]
[]
[]
[]
[]
[]
[]
[]
[]
[]
[]
[]
[]
[]
[]
[]
[]
[]
[]
[]
[]
[]
[]
[]
[]
[]
[]
[]
[]
[]
[]
[]
[]
[]
[]
[]
[]
[]
[]
[]
[]
[]
[]
[]
[]
[]
[]
[]
[]
[]
[]
[]
[]
[]
[]
[]
[]
[]
[]
[]
[]
[]
[]
[]
[]
[]
[]
[]
[]
[]
[]
[]
[]
[]
[]
[]
[]
[]
[]
[]
[]
[]
[]
[]
[]
[]
[]
[]
[]
[]
[]
[]
[]
[]
[]
[]
[]
[]
[]
[]
[]
[]
[]
[]
[]
[]
[]
[]
[]
[]
[]
[]
[]
[]
[]
[]
[]
[]
[]
[]
[]
[]
[]
[]
[]
[]
[]
[]
[]
[]
[]
[]
[]
[]
[]
[]
[]
[]
[]
[]
[]
[]
[]
[]
[]
[]
[]
[]
[]
[]
[]
[]
[]
[]
[]
[]
[]
[]
[]
[]
[]
[]
[]
[]
[]
[]
[]
[]
[]
[]
[]
[]
[]
[]
[]
[]
[]
[]
[]
[]
[]
[]
[]
[]
[]
[]
[]
[]
[]
[]
[]
[]
[]
[]
[]
[]
[]
[]
[]
[]
[]
[]
[]
[]
[]
[]
[]
[]
[]
[]
[]
[]
[]
[]
[]
[]
[]
[]
[]
[]
[]
[]
[]
[]
[]
[]
[]
[]
[]
[]
[]
[]
[]
[]
[]
[]
[]
[]
[]
[]
[]
[]
[]
[]
[]
[]
[]
[]
[]
[]
[]
[]
[]
[]
[]
[]
[]
[]
[]
[]
[]
[]
[]
[]
[]
[]
[]
[]
[]
[]
[]
[]
[]
[]
[]
[]
[]
[]
[]
[]
[]
[]
[]
[]
[]
[]
[]
[]
[]
[]
[]
[]
[]
[]
[]
[]
[]
[]
[]
[]
[]
[]
[]
[]
[]
[]
[]
[]
[]
[]
[]
[]
[]
[]
[]
[]
[]
[]
[]
[]
[]
[]
[]
[]
[]
[]
[]
[]
[]
[]
[]
[]
[]
[]
[]
[]
[]
[]
[]
[]
[]
[]
[]
[]
[]
[]
[]
[]
[]
[]
[]
[]
[]
[]
[]
[]
[]
[]
[]
[]
[]
[]
[]
[]
[]
[]
[]
[]
[]
[]
[]
[]
[]
[]
[]
[]
[]
[]
[]
[]
[]
[]
[]
[]
[]
[]
[]
[]
[]
[]
[]
[]
[]
[]
[]
[]
[]
[]
[]
[]
[]
[]
[]
[]
[]
[]
[]
[]
[]
[]
[]
[]
[]
[]
[]
[]
[]
[]
[]
[]
[]
[]
[]
[]
[]
[]
[]
[]
[]
[]
[]
[]
[]
[]
[]
[]
[]
[]
[]
[]
[]
[]
[]
[]
[]
[]
[]
[]
[]
[]
[]
[]
[]
[]
[]
[]
[]
[]
[]
[]
[]
[]
[]
[]
[]
[]
[]
[]
[]
[]
[]
[]
[]
[]
[]
[]
[]
[]
[]
[]
[]
[]
[]
[]
[]
[]
[]
[]
[]
[]
[]
[]
[]
[]
[]
[]
[]
[]
[]
[]
[]
[]
[]
[]
[]
[]
[]
[]
[]
[]
[]
[]
[]
[]
[]
[]
[]
[]
[]
[]
[]
[]
[]
[]
[]
[]
[]
[]
[]
[]
[]
[]
[]
[]
[]
[]
[]
[]
[]
[]
[]
[]
[]
[]
[]
[]
[]
[]
[]
[]
[]
[]
[]
[]
[]
[]
[]
[]
[]
[]
[]
[]
[]
[]
[]
[]
[]
[]
[]
[]
[]
[]
[]
[]
[]
[]
[]
[]
[]
[]
[]
[]
[]
[]
[]
[]
[]
[]
[]
[]
[]
[]
[]
[]
[]
[]
[]
[]
[]
[]
[]
[]
[]
[]
[]
[]
[]
[]
[]
[]
[]
[]
[]
[]
[]
[]
[]
[]
[]
[]
[]
[]
[]
[]
[]
[]
[]
[]
[]
[]
[]
[]
[]
[]
[]
[]
[]
[]
[]
[]
[]
[]
[]
[]
[]
[]
[]
[]
[]
[]
[]
[]
[]
[]
[]
[]
[]
[]
[]
[]
[]
[]
[]
[]
[]
[]
[]
[]
[]
[]
[]
[]
[]
[]
[]
[]
[]
[]
[]
[]
[]
[]
[]
[]
[]
[]
[]
[]
[]
[]
[null,{"$f":"IF(COUNTA(ID!A1:DR500)=51,XY6000+No,\"#\")","v":0},null,null,null,null,null,null,null,null,null,null,null,null,null,null,null,null,null,null,null,null,null,null,null,null,null,null,null,null,null,null,null,null,null,null,null,null,null,null,null,null,null,null,null,null,null,null,null,null,null,null,null,null,null,null,null,null,null,null,null,null,null,null,null,null,null,null,null,null,null,null,null,null,null,null,null,null,null,null,null,null,null,null,null,null,null,null,null,null,null,null,null,null,null,null,null,null,null,null,null,null,null,null,null,null,null,null,null,null,null,null,null,null,null,null,null,null,null,null,null,null,null,null,null,null,null,null,null,null,null,null,null,null,null,null,null,null,null,null,null,null,null,null,null,null,null,null,null,null,null,null,null,null,null,null,null,null,null,null,null,null,null,null,null,null,null,null,null,null,null,null,null,null,null,null,null,null,null,null,null,null,null,null,null,null,null,null,null,null,null,null,null,null,null,null,null,null,null,null,null,null,null,null,null,null,null,null,null,null,null,null,null,null,null,null,null,null,null,null,null,null,null,null,null,null,null,null,null,null,null,null,null,null,null,null,null,null,null,null,null,null,null,null,null,null,null,null,null,null,null,null,null,null,null,null,null,null,null,null,null,null,null,null,null,null,null,null,null,null,null,null,null,null,null,null,null,null,null,null,null,null,null,null,null,null,null,null,null,null,null,null,null,null,null,null,null,null,null,null,null,null,null,null,null,null,null,null,null,null,null,null,null,null,null,null,null,null,null,null,null,null,null,null,null,null,null,null,null,null,null,null,null,null,null,null,null,null,null,null,null,null,null,null,null,null,null,null,null,null,null,null,null,null,null,null,null,null,null,null,null,null,null,null,null,null,null,null,null,null,null,null,null,null,null,null,null,null,null,null,null,null,null,null,null,null,null,null,null,null,null,null,null,null,null,null,null,null,null,null,null,null,null,null,null,null,null,null,null,null,null,null,null,null,null,null,null,null,null,null,null,null,null,null,null,null,null,null,null,null,null,null,null,null,null,null,null,null,null,null,null,null,null,null,null,null,null,null,null,null,null,null,null,null,null,null,null,null,null,null,null,null,null,null,null,null,null,null,null,null,null,null,null,null,null,null,null,null,null,null,null,null,null,null,null,null,null,null,null,null,null,null,null,null,null,null,null,null,null,null,null,null,null,null,null,null,null,null,null,null,null,null,null,null,null,null,null,null,null,null,null,null,null,null,null,null,null,null,null,null,null,null,null,null,null,null,null,null,null,null,null,null,null,null,null,null,null,null,null,null,null,null,null,null,null,null,null,null,null,null,null,null,null,null,null,null,null,null,null,null,null,null,null,null,null,null,null,null,null,null,null,null,null,null,null,null,null,null,null,null,null,null,null,null,null,null,null,null,null,null,null,null,null,null,null,null,null,null,null,null,null,null,null,null,null,null,null,null,null,null,null,null,null,null,null,null,null,null,null,null,null,null,null,null,null,null,null,null,null,null,null,null,null,null,null,null,null,null,{"$f":"IF(NOW()>LARGE(46022,1),\"#\",0)","v":0}]